Cogmind - Beta 15 @@@ ROGUE MODE // 2025.08.11 @ 14:52:12 Player: 7604 Result: Self-destructed Performance ------------- Evolutions (8) 4000 Regions Visited (29) 5800 Robots Destroyed (291) 1455 Value Destroyed (11895) 11895 Prototype IDs (96) 1920 Alien Tech Used (3) 600 Bonus (5365) 5365 TOTAL SCORE: 31035 Bonus ------- High Alert Combat Kills 602 Follower Combat Kills 2748 Network Hubs Disabled 600 Met Data Miner 300 Met Zhirov 300 Built Enhanced Grunts 300 A7 Reached Mainframe 300 Met R17 at Cetus 500 Met R17 at Research 2000 Friendly Fire -2285 Cogmind --------- Core Integrity 837/1450 Matter 19/300 Energy 190/190 System Corruption 50% Temperature Cool (0) Movement Hovering (153) Ox1 Location -2/Research Parts ------- > --- POWER (2) -------- Light Quantum Reactor > --- PROPULSION (5) --- Hovering Antigrav-Biometal Exoskeleton > --- UTILITY (11) ----- High-capacity Storage Unit Advanced Signal Interpreter SHELL Armor > --- WEAPON (5) ------- Cooled Nova Cannon Helical Railgun > --- INVENTORY (20) --- Heavy Shield Leg Improved Antigrav System Improved Linear Gravjet Improved Linear Gravjet Improved Linear Gravjet Experimental Matter Compressor (257) Quantum Capacitor Medium Regenerative Plating Heavy Regenerative Plating AEGIS Remote Shield Gamma Rifle Missile Launcher Multitool Peak State ------------ > --- POWER ------------ Light Particle Reactor Multi-Antimatter Reactor > --- PROPULSION ------- Hovering Antigrav-Biometal Exoskeleton > --- UTILITY ---------- Armored Scrap Engine Coolant Network High-capacity Storage Unit Advanced Sensor Array Advanced Signal Interpreter Experimental Core Analyzer Makeshift Transmission Jammer Heavy Regenerative Plating > --- WEAPON ----------- HERF Cannon Hpw. EM Gamma Construct/G Plasma Lance > --- INVENTORY -------- Antigrav System Experimental Matter Compressor Advanced Sensor Array Quantum Capacitor ECM Suite Medium Regenerative Plating SHELL Armor AEGIS Remote Shield Transdimensional Reconstructor Nova Cannon Cooled Nova Cannon Hypervelocity Railgun Helical Railgun Enhanced Hardcell Cannon Missile Launcher Tiamat Missile Launcher Multitool [Rating: 190] Favorites ----------- Power Constructs Engine Light Angular Momentum Engine Power Core Nuclear Core Reactor Constructs Propulsion Light Treads Treads Light Treads Leg Carbon-fiber Leg Wheel Subdweller Monowheel Hover Unit Constructs Utility High-capacity Storage Unit Device Armored Scrap Engine Storage High-capacity Storage Unit Processor Advanced Signal Interpreter Hackware Hacking Suite Protection Centrium Medium Armor Plating Weapon Constructs Energy Gun Constructs Energy Cannon Subdweller Beam Cannon Ballistic Gun Gauss Rifle Ballistic Cannon Bore Cannon Launcher Tiamat Missile Launcher Special Weapon Multitool Impact Weapon Impact Mace Slashing Weapon Scythe Piercing Weapon Force Lance Special Melee Weapon Advanced Datajack Build | -11 -10 -10 -8 -8 -8 -6 -6 -6 -6 -6 -6 -5 -5 -5 -5 -5 -5 -5 -4 -4 -4 -4 -4 -4 -4 -4 -3 -3 -2 ------- Run | Yrd Mat Sub Mat Sto Rec Fac Was Fac Low Low Dat Pro Fac Was Fac Upp Upp Zhi Pro Fac Was Fac Ext Cet Arc Hub Res Tes Res Slots Evolved 16 | . . . 4 . . 4 . . . . . . 2 . . . . . . 2 . . . . . . 2 . 2 Power 1 | . . . . . . 1 . . . . . . . . . . . . . . . . . . . . . . . Propulsion 3 | . . . 3 . . . . . . . . . . . . . . . . . . . . . . . . . . Utility 9 | . . . 1 . . 2 . . . . . . 2 . . . . . . 1 . . . . . . 2 . 1 Weapon 3 | . . . . . . 1 . . . . . . . . . . . . . 1 . . . . . . . . 1 Parts Attached 233 | 7 9 11 30 18 1 12 1 4 5 3 . 2 11 1 1 1 . 2 . 13 1 11 14 3 8 7 22 15 20 Power 25 | 1 1 1 5 1 . 2 . . 1 . . . . . . . . . . . . . 2 1 1 . 2 2 5 Engine 6 | 1 . 1 2 . . 2 . . . . . . . . . . . . . . . . . . . . . . . Core 8 | . 1 . 3 1 . . . . 1 . . . . . . . . . . . . . 1 . . . 1 . . Reactor 11 | . . . . . . . . . . . . . . . . . . . . . . . 1 1 1 . 1 2 5 Propulsion 31 | 2 . 3 13 11 . . . . . . . . . . . . . . . . . . . . . . . . 2 Treads 23 | 2 . 1 9 11 . . . . . . . . . . . . . . . . . . . . . . . . . Leg 1 | . . . 1 . . . . . . . . . . . . . . . . . . . . . . . . . . Wheel 4 | . . 2 2 . . . . . . . . . . . . . . . . . . . . . . . . . . Hover 3 | . . . 1 . . . . . . . . . . . . . . . . . . . . . . . . . 2 Flight . | . . . . . . . . . . . . . . . . . . . . . . . . . . . . . . Utility 112 | 2 6 . 5 1 1 7 1 1 3 2 . 2 5 1 1 1 . 2 . 10 . 8 6 1 6 5 16 12 7 Device 64 | 1 2 . 2 . 1 5 1 1 3 1 . 1 2 . 1 . . 1 . 5 . 4 4 . 5 4 8 9 3 Storage 10 | 1 3 . 1 . . . . . . . . . . . . . . . . 1 . . . . . . 2 1 1 Processor 11 | . 1 . . . . 2 . . . . . . 1 . . . . . . 3 . 2 . . . . 2 . . Hackware 3 | . . . . 1 . . . . . . . . . . . . . . . . . . . . 1 . . 1 . Protection 24 | . . . 2 . . . . . . 1 . 1 2 1 . 1 . 1 . 1 . 2 2 1 . 1 4 1 3 Artifact . | . . . . . . . . . . . . . . . . . . . . . . . . . . . . . . Weapon 65 | 2 2 7 7 5 . 3 . 3 1 1 . . 6 . . . . . . 3 1 3 6 1 1 2 4 1 6 Energy Gun 13 | . 2 2 1 2 . . . 1 . . . . 1 . . . . . . 1 . 1 . . . 1 . . 1 Energy Cannon 11 | . . 2 . . . . . 2 1 . . . . . . . . . . . . . . . . . 2 1 3 Ballistic Gun 16 | 2 . 1 4 3 . . . . . . . . 1 . . . . . . . 1 1 1 1 . . 1 . . Ballistic Cannon 6 | . . 1 . . . 2 . . . . . . . . . . . . . . . . 2 . . 1 . . . Launcher 3 | . . 1 . . . . . . . . . . 1 . . . . . . . . . . . . . . . 1 Special Weapon 3 | . . . 1 . . . . . . 1 . . . . . . . . . . . . . . . . . . 1 Impact Weapon 1 | . . . . . . . . . . . . . . . . . . . . . . 1 . . . . . . . Slashing Weapon 3 | . . . 1 . . 1 . . . . . . . . . . . . . . . . 1 . . . . . . Piercing Weapon 5 | . . . . . . . . . . . . . 2 . . . . . . 1 . . 1 . . . 1 . . Special Melee Weapon 4 | . . . . . . . . . . . . . 1 . . . . . . 1 . . 1 . 1 . . . . Unidentified Prototypes 44 | . . . 2 4 1 2 1 3 . . . . 2 . . 1 . 3 . 3 . 3 . 2 1 . 8 7 1 Corrupted Parts 1 | . . . . . . . . . . . . . . . . . . . . . . . . . . 1 . . . System Corruption 10 | . . . . . . . . . . . . . . . . . . . . . . . . . . 10 . . . Parts Lost 65 | . 2 7 6 5 . . . . . . . 1 . . . . . . . 1 . 7 6 1 . 2 3 1 23 Power 11 | . . 2 2 . . . . . . . . . . . . . . . . . . 2 1 . . . 1 . 3 Propulsion 11 | . . 4 3 1 . . . . . . . . . . . . . . . . . . . . . . . . 3 Utility 27 | . . 1 . 1 . . . . . . . 1 . . . . . . . 1 . 4 3 1 . 2 2 1 10 Weapon 16 | . 2 . 1 3 . . . . . . . . . . . . . . . . . 1 2 . . . . . 7 Highest Loss Streak 6 | . 1 3 2 2 . . . . . . . 1 . . . . . . . 1 . 3 3 1 . 1 1 1 6 To Critical Strikes 1 | . . . . . . . . . . . . . . . . . . . . . . . . . . . . . 1 Average Backups 18 | 2 9 15 20 24 21 19 18 17 18 18 19 18 18 20 20 17 17 19 20 18 18 17 16 18 18 18 18 17 15 Power . | . 1 . . . 1 . 1 . . . . . 1 . . . . . . . . . . . . 1 . . . Propulsion 2 | . . 1 1 4 3 2 3 2 1 2 2 . 1 2 2 . . . . . . . 1 3 3 3 2 1 2 Utility 7 | . 4 5 7 9 9 10 9 8 9 9 9 8 6 6 6 6 7 7 6 6 7 6 6 9 10 9 6 7 6 Weapon 6 | 1 3 7 10 8 5 3 2 4 5 5 5 5 7 9 9 8 7 9 9 6 7 6 4 4 2 2 7 6 4 Tool/Special . | . . . . . . . . . . . . . . . . . . . . . . . . . . . . . . Unused Backups 168 | . . 1 8 4 54 8 2 4 3 . . 2 8 . . 4 . . 1 13 . 4 14 6 . 2 10 7 13 Power 12 | . . . . . 4 1 . . . . . . 4 . . . . . . . . 1 1 . . . 1 . . Propulsion 69 | . . . 2 2 35 2 . 2 2 . . 2 . . . 2 . . . 3 . . 4 1 . . 2 3 7 Utility 18 | . . . 3 1 2 1 2 2 . . . . . . . . . . 1 2 . 1 1 1 . . . 1 . Weapon 69 | . . 1 3 1 13 4 . . 1 . . . 4 . . 2 . . . 8 . 2 8 4 . 2 7 3 6 Tool/Special . | . . . . . . . . . . . . . . . . . . . . . . . . . . . . . . Average Slot Usage (%) 71 | . 99 98 91 99 68 53 53 54 52 52 53 52 57 58 58 58 58 57 58 56 57 54 62 64 60 62 60 59 51 Engine 2 | . 6 8 6 . 2 2 . 5 5 6 6 6 . . . . . . . . . . . . . . . . . Core 3 | . 7 5 2 9 6 3 6 2 . . . . 4 5 5 5 5 3 . . . . 2 . . . . . . Reactor 1 | . . . . . . . . . . . . . . . . . . 1 5 5 5 2 3 7 5 5 4 5 4 Treads 11 | . 27 20 23 44 16 . . 5 1 . . . . . . . . . . 1 5 2 . . . . 1 . . Wheel 1 | . . 6 6 . 4 . . . . . . . . . . . . . . . . . . . . . . . . Hover 2 | . . . 5 . . 6 6 . 4 6 6 6 5 5 5 5 5 5 5 3 . 2 1 5 5 5 2 4 3 Device 14 | . 13 13 17 14 9 12 13 12 12 16 20 16 17 14 17 17 16 16 17 17 21 19 17 15 19 20 16 14 13 Storage 7 | . 14 14 9 9 9 6 6 6 6 6 6 6 5 5 5 5 5 5 5 5 5 5 5 5 5 5 4 4 4 Processor 3 | . . . . . . 5 6 1 . . . . 3 5 5 5 5 5 5 7 10 9 10 5 5 5 8 10 7 Protection 2 | . . . . 1 . . . 4 6 3 . 2 5 8 4 4 5 5 5 4 . 1 2 9 2 3 10 8 4 Energy Gun 1 | . 6 10 . . . . . . . . . . . . . . . . . . . . 3 2 2 . . . . Energy Cannon 1 | . . 13 . . . . . . 1 . . . . . . . . . . 1 . . . . 1 . 1 1 4 Ballistic Gun 5 | . 21 2 11 16 9 . . . . . . . . . . . . . . . . . 1 1 1 3 . . . Ballistic Cannon 2 | . . 1 . . . 6 6 6 4 6 6 6 5 5 5 5 5 5 5 3 4 4 2 2 . . 2 2 1 Slashing Weapon 2 | . . . 5 1 7 5 6 6 5 5 6 6 1 . . . . . . . . . . . . . . . . Piercing Weapon 1 | . . . . . . . . . . . . . 3 5 5 5 5 5 5 4 5 4 5 5 5 5 . 2 2 Peak Build Rating 190 | 7 11 18 36 38 50 73 71 80 85 85 82 87 88 88 88 92 96 101 95 124 122 133 130 128 130 140 172 183 190 Average Rating 74 | 6 8 15 28 30 41 63 66 74 78 81 82 75 79 85 84 90 93 94 95 107 119 117 108 115 120 128 159 171 172 On Entrance 82 | . 7 10 17 27 37 48 68 65 75 81 82 82 69 88 84 88 92 94 95 95 118 120 105 104 123 130 139 168 170 Naked Turns . | . . . . . . . . . . . . . . . . . . . . . . . . . . . . . . Heaviest Build 158 | 15 50 60 101 100 101 71 61 76 72 87 68 87 91 91 91 91 99 95 95 96 74 84 100 110 103 109 125 107 158 Greatest Support 267 | 40 40 40 100 108 108 84 84 141 141 141 141 141 99 99 99 145 145 145 145 217 217 267 168 129 129 129 183 183 165 Greatest Overweight (x) 16 | . 1 16 3 . 5 1 . . . . . . . . . . . . . . . . 1 . . . 1 . 1 Average Overweight (x) . | . . 1 1 . 1 . . . . . . . . . . . . . . . . . . . . . . . . Largest Inventory Capacity 25 | 8 20 20 25 25 25 20 20 20 20 20 20 20 20 20 20 20 20 20 20 20 20 20 20 20 20 20 20 20 20 Average Capacity 20 | 7 14 20 22 25 24 20 20 20 20 20 20 20 20 20 20 20 20 20 20 20 20 20 20 20 20 20 20 20 20 Most Carried 25 | 5 14 20 25 25 25 20 20 20 20 20 20 20 20 20 20 20 19 20 20 20 20 20 20 20 20 20 20 20 20 Average Carried 19 | 2 9 18 22 24 21 19 19 18 19 19 20 18 18 20 20 17 17 19 19 18 19 18 17 19 19 19 19 19 18 Final Capacity 25 | 8 20 20 25 25 20 20 20 20 20 20 20 20 20 20 20 20 20 20 20 20 20 20 20 20 20 20 20 20 20 Final Carried 25 | 5 12 18 25 25 20 20 19 20 20 20 20 17 20 20 20 17 19 20 20 19 20 16 20 18 20 17 18 20 16 Scrap Engine Consumption 336 | . . . . . 93 18 . 4 9 . . 2 12 1 . 5 . 1 1 20 7 9 50 17 11 11 25 17 23 Constructs Created 5 | . . . . . 3 . . . . . . . . . . . . . . . . . 2 . . . . . . Constructs Modified 150 | . . . . . 37 10 . 2 5 . . 1 6 . . 3 . 1 . 8 2 4 23 6 5 3 14 7 13 Class Distribution -------------------- 46% | Construct 23% | Mutant 15% | Scavenger-Mutant 6% | Scavenger-Construct 5% | Commander-Construct Dominant Class ---------------- Mutant | -10/Materials Scavenger-Mutant | -10/Subcaves Scavenger-Mutant | -8/Materials Scavenger-Mutant | -8/Storage Construct | -8/Recycling Construct | -6/Factory Construct | -6/Waste Construct | -6/Factory Construct | -6/Lower Caves Construct | -6/Lower Caves Construct | -6/Data Miner Construct | -5/Proximity Caves Construct | -5/Factory Construct | -5/Waste Construct | -5/Factory Construct | -5/Upper Caves Construct | -5/Upper Caves Construct | -5/Zhirov Construct | -4/Proximity Caves Construct | -4/Factory Construct | -4/Waste Construct | -4/Factory Construct | -4/Extension Commander-Construct | -4/Cetus Commander-Construct | -4/Archives Construct | -4/Hub_04(d) Scavenger-Construct | -3/Research Scavenger-Construct | -3/Testing Construct | -2/Research Resources | -11 -10 -10 -8 -8 -8 -6 -6 -6 -6 -6 -6 -5 -5 -5 -5 -5 -5 -5 -4 -4 -4 -4 -4 -4 -4 -4 -3 -3 -2 ----------- Run | Yrd Mat Sub Mat Sto Rec Fac Was Fac Low Low Dat Pro Fac Was Fac Upp Upp Zhi Pro Fac Was Fac Ext Cet Arc Hub Res Tes Res Matter Collected 12418 | 302 588 284 1045 1004 54 852 . 309 279 112 . 241 183 . . 232 215 50 33 438 147 433 1249 133 113 154 935 1507 1526 Remotely . | . . . . . . . . . . . . . . . . . . . . . . . . . . . . . . Salvage Created 14807 | 152 726 366 1562 1290 1226 891 . 328 181 48 . 272 478 . . 81 28 119 . 489 . 703 895 . 415 183 1349 1450 1575 Parts 788 | 14 55 18 82 80 52 31 . 14 11 5 . 14 12 . . 4 4 1 . 18 . 47 32 . 30 7 59 77 121 Haulers Intercepted 20 | . 2 . 2 4 1 3 . 1 . . . . 3 . . . . . . 2 . . . . . . 1 1 . Recyclers Shooed 12 | . . . 3 3 . 1 . . . . . . . . . . . . . . . 2 1 . . . . . 2 Parts Field Recycled . | . . . . . . . . . . . . . . . . . . . . . . . . . . . . . . Retrieved Matter . | . . . . . . . . . . . . . . . . . . . . . . . . . . . . . . Parts Self-Destructed 43 | . . 12 . . . . . . 7 5 . 14 . . . . 4 1 . . . . . . . . . . . Prevented . | . . . . . . . . . . . . . . . . . . . . . . . . . . . . . . Kills | -11 -10 -10 -8 -8 -8 -6 -6 -6 -6 -6 -6 -5 -5 -5 -5 -5 -5 -5 -4 -4 -4 -4 -4 -4 -4 -4 -3 -3 -2 ------- Run | Yrd Mat Sub Mat Sto Rec Fac Was Fac Low Low Dat Pro Fac Was Fac Upp Upp Zhi Pro Fac Was Fac Ext Cet Arc Hub Res Tes Res Combat Hostiles Destroyed 194 | . 14 8 28 19 3 6 . 2 3 1 . 11 4 . . 1 2 . . 5 . 20 7 . 2 1 19 15 23 Melee 21 | . . . 3 . 1 . . 1 . . . . 1 . . 1 2 . . 1 . 3 . . . . . 4 4 Guns 68 | . 14 3 25 19 2 . . . . . . . . . . . . . . . . . 4 . . 1 . . . Cannons 72 | . . 2 . . . 6 . 1 3 1 . 11 3 . . . . . . 2 . 7 2 . 1 . 11 10 12 AOE 22 | . . 3 . . . . . . . . . . . . . . . . . 2 . 10 . . . . 1 . 6 Classes Destroyed 24 | 2 8 2 2 . 1 . . . 1 1 . . . . . . 1 . . 1 . 1 1 . . . 2 1 . Worker 7 | . 2 . 1 1 1 . . . . . . . . . . . . . . . . . . . . . . . 2 Builder 10 | . 1 . . . 3 . . . . . . . . . . . . . . . . 3 1 . . . . . 2 Tunneler 7 | 4 . . . . 1 2 . . . . . . . . . . . . . . . . . . . . . . . Hauler 20 | . 2 . 2 4 1 3 . 1 . . . . 3 . . . . . . 2 . . . . . . 1 1 . Recycler 19 | 1 1 . 1 2 5 1 . 1 . . . . . . . . . . . 1 . . 2 . . 1 . 2 1 Mechanic 2 | . 1 . . . . . . . . . . . . . . . . . . . . . . . . . . . 1 Operator 13 | . 1 . 1 1 . . . . . . . . . . . . . . . . . . 1 . 8 . . 1 . Drone 2 | . . . . . . . . . . . . . . . . . 1 . . . . . . . . . . . 1 Watcher 11 | . 3 . . . . 1 . . . . . . 1 . . . . . . 1 . 1 1 . . . . . 3 Swarmer 53 | . 6 . 3 3 . . . . . . . 11 1 . . . 1 . . 1 . 14 . . . . 3 2 8 Cutter 3 | . . . . . . . . . . . . . . . . . . . . 2 . 1 . . . . . . . Grunt 41 | . 8 . 16 6 . 4 . . . . . . . . . . . . . . . 1 3 . . 1 1 1 . Brawler 3 | . . . 2 . . 1 . . . . . . . . . . . . . . . . . . . . . . . Researcher 1 | . . . . . . . . . . . . . . . . . . . . . . . . . . . . 1 . Sentry 29 | . . . 7 10 . 1 . 2 1 . . . . . . . . . . 2 . 1 2 . 2 . 1 . . Demolisher 2 | . . . . . 1 . . . . . . . . . . . . . . . . . . . . . 1 . . Hunter 10 | . . . . . . . . . 2 . . . . . . . . . . . . . . . . . 2 4 2 Programmer 27 | . . . . . . . . . . 1 . . 3 . . . . . . . . 3 . . . . . 8 12 Behemoth 2 | . . . . . . . . . . . . . . . . . . . . . . . 2 . . . . . . Striker 9 | . . . . . . . . . . . . . . . . . . . . . . . . . . . 9 . . Executioner 2 | . . . . . . . . . . . . . . . . . . . . . . . . . . . 2 . . Artisan 2 | . . 2 . . . . . . . . . . . . . . . . . . . . . . . . . . . Subdweller 10 | . . 8 . . 2 . . . . . . . . . . . . . . . . . . . . . . . . Surgeon 1 | . . . . . . . . . . . . . . . . . . . . . . 1 . . . . . . . Thug 7 | . . . . . . . . . . . . . . . . 1 . . . . . 6 . . . . . . . Butcher 2 | . . . . . . . . . . . . . . . . . . . . . . 2 . . . . . . . Best Kill Streak 9 | 2 6 3 9 4 2 3 . 2 2 1 . 4 2 . . 1 1 . . 2 . 9 2 . 4 1 4 4 6 Combat Bots Only 9 | . 3 3 9 4 1 3 . 2 2 1 . 4 2 . . 1 1 . . 2 . 6 2 . 1 1 4 4 5 Max Kills in Single Turn 9 | 1 2 2 2 2 1 1 . 1 1 1 . 1 1 . . 1 1 . . 1 . 9 1 . 1 1 1 1 3 Gunslinging 1 | . . . 1 1 . . . . . . . . . . . . . . . . . . . . . . . . . Exploded 4 | . . 2 . . . . . . . . . . . . . . . . . 1 . 4 . . . . 1 . 2 Melee 1 | . . . 1 . 1 . . 1 . . . . 1 . . 1 1 . . 1 . 1 . . . . . 1 1 Uniques/NPCs Destroyed . | . . . . . . . . . . . . . . . . . . . . . . . . . . . . . . Combat | -11 -10 -10 -8 -8 -8 -6 -6 -6 -6 -6 -6 -5 -5 -5 -5 -5 -5 -5 -4 -4 -4 -4 -4 -4 -4 -4 -3 -3 -2 -------- Run | Yrd Mat Sub Mat Sto Rec Fac Was Fac Low Low Dat Pro Fac Was Fac Upp Upp Zhi Pro Fac Was Fac Ext Cet Arc Hub Res Tes Res Hostile Shots Fired 2404 | . 79 39 129 97 2 52 . 48 42 22 . 81 59 . 39 10 30 . 4 50 . 263 194 28 2 69 132 207 726 Missed 798 | . 18 11 36 25 . 16 . 12 14 11 . 17 29 . 12 2 10 . 3 11 . 101 64 17 1 13 46 74 255 Hits 1606 | . 61 28 93 72 2 36 . 36 28 11 . 64 30 . 27 8 20 . 1 39 . 162 130 11 1 56 86 133 471 Melee 7 | . . . 1 . . . . . . . . . . . . . . . . . . 3 . . . . 3 . . Projectile 1599 | . 61 28 92 72 2 36 . 36 28 11 . 64 30 . 27 8 20 . 1 39 . 159 130 11 1 56 83 133 471 AOE 20 | . . . . . . . . . . . . . 1 . . . . . . 2 . 2 . . . 1 14 . . Critical Strikes 80 | . 2 1 7 2 . 3 . . . 1 . . 2 . 1 . . . . . . 9 10 1 . 8 4 8 21 Actively Blocked 2 | . . . . . . . . . . . . . 1 . . . . . . . . . . . . . 1 . . Part Disruptions 4 | . . . . . . . . . . . . . . . . . . . . . . . . . . . . 2 2 Damage Taken 31797 | . 712 608 1380 1085 55 530 . 317 359 112 . 851 711 . 416 121 321 . 15 798 . 3168 2810 256 51 1396 2608 2577 10540 Core 2602 | . 91 146 189 109 . 77 . 33 41 3 . 84 76 . 24 39 9 . . 123 . 245 292 . . 162 139 178 542 Absorbed by Shields 1804 | . . . . . . . . . . . . . . . . . . . . 114 . . 441 53 . 479 473 . 244 Redirected to Shielding 229 | . . . . . . . . . . . . . 66 . 17 14 20 . . . . . . . . . 112 . . Ignored by Resistances 357 | . . . . . . . . . . 8 . 185 6 . 60 . 48 . 7 . . 43 . . . . . . . Regen/Repaired (Parts) 12167 | . 113 . 3 . . 376 . 177 343 . . 192 582 . . 347 . 81 . 652 142 806 2075 214 100 195 1346 1515 2908 Core Remaining (%) 58 | 100 . 5 . . 45 . . . . . . 72 . . . . . . 85 . . . . . . 28 . 75 . Volleys Fired 844 | 14 65 42 73 69 3 30 . 7 10 1 . 34 22 . 4 . 5 . 8 21 5 47 97 30 13 27 47 51 119 Largest 3 | 2 2 2 2 2 2 1 . 1 1 1 . 1 1 . 1 . 1 . 1 1 1 2 2 1 1 1 1 1 3 Hottest 323 | 40 100 210 110 56 56 116 . 116 116 116 . 116 168 . 168 . 196 . 196 177 177 223 210 109 213 101 151 124 323 Shots Fired 1103 | 28 127 66 146 137 6 30 . 7 10 1 . 31 22 . 4 . 4 . 8 21 5 46 120 28 13 27 47 52 117 Gun 627 | 28 127 28 146 137 6 . . . . . . . . . . . . . . . . . 87 27 . 15 . 14 12 Cannon 461 | . . 36 . . . 30 . 7 10 1 . 31 22 . 4 . 4 . 8 19 5 40 33 . 13 12 47 38 101 Launcher 14 | . . 2 . . . . . . . . . . . . . . . . . 2 . 6 . . . . . . 4 Special 1 | . . . . . . . . . . . . . . . . . . . . . . . . 1 . . . . . Kinetic 744 | 28 114 15 140 137 6 30 . 7 10 . . . 14 . 4 . 4 . 8 10 5 10 75 14 . 27 16 25 45 Thermal 257 | . 13 51 6 . . . . . . 1 . 31 8 . . . . . . 9 . 30 45 13 . . 6 8 36 Explosive 12 | . . . . . . . . . . . . . . . . . . . . 2 . 6 . . . . . . 4 Electromagnetic 89 | . . . . . . . . . . . . . . . . . . . . . . . . . 13 . 25 19 32 Robot Hit Streak 18 | 7 9 13 18 13 6 17 . 7 11 12 . 5 9 . 3 . . . . 6 11 12 15 12 6 5 3 11 9 Robot Miss Streak 7 | 2 4 2 3 4 . 3 . 3 3 . . 3 5 . 2 . . . . 2 . 5 5 1 2 4 5 4 7 Penetration Max 1 | . . . 1 1 . . . . . . . . . . . . . . . . . . 1 . . 1 . . . Secondary Targets 7 | . . . 5 2 . . . . . . . . . . . . . . . . . . . . . . . . . Max Gunslinging Chain 1 | . . . 1 1 . . . . . . . . . . . . . . . . . . . . . . . . . Shots Hit Robots 865 | 19 83 47 112 92 40 37 . 11 9 1 . 18 27 . 4 3 2 3 . 27 5 25 110 22 28 16 24 34 66 Core Hits 408 | 6 42 14 53 38 21 25 . 7 8 1 . 9 10 . 2 2 1 1 . 13 . 36 28 6 8 7 13 19 38 Critical Kills 12 | . 1 . 1 2 . . . . . . . . . . . . . . . . . . 3 . . . 2 . 3 Critical Parts Destroyed 20 | . . . 1 1 . . . . . . . . . . . . . . . . . . 9 . . . 3 1 5 Critical Strikes 57 | . 2 1 3 4 . 2 . . . . . . 1 . . 1 . . . 1 . . 20 1 6 . 5 2 8 Burn 2 | . 1 . . . . . . . . . . . . . . . . . . 1 . . . . . . . . . Destroy 42 | . 1 1 2 3 . . . . . . . . . . . . . . . . . . 20 1 . . 5 1 8 Sever 5 | . . . 1 1 . 2 . . . . . . 1 . . . . . . . . . . . . . . . . Impale 8 | . . . . . . . . . . . . . . . . 1 . . . . . . . . 6 . . 1 . Melee Attacks 366 | . . . 20 7 41 36 . 13 . . . . 19 . 5 7 10 3 1 38 2 29 32 . 23 1 2 33 44 Impact . | . . . . . . . . . . . . . . . . . . . . . . . . . . . . . . Slashing 124 | . . . 20 7 41 36 . 13 . . . . 7 . . . . . . . . . . . . . . . . Piercing 219 | . . . . . . . . . . . . . 12 . 5 7 10 3 1 37 2 29 14 . 21 1 . 33 44 Sneak Attacks 87 | . . . 3 1 22 8 . 2 . . . . 2 . . . 1 . . 4 . 1 22 . 11 . 2 3 5 Combat Hostiles 2 | . . . . 1 . . . . . . . . . . . . 1 . . . . . . . . . . . . Follow-up Attacks . | . . . . . . . . . . . . . . . . . . . . . . . . . . . . . . Damage Inflicted 39826 | 239 1110 1305 2239 2045 2280 1819 . 661 389 58 . 1060 1613 . 162 213 110 220 . 1599 402 4002 3307 663 1337 845 2859 4136 5153 Guns 9493 | 239 1108 504 1910 1942 94 . . . . . . . . . . . . . . . . . 2340 663 . 441 . 149 103 Cannons 17311 | . . 540 . . . 1049 . 405 389 58 . 1060 1133 . 162 . . . . 969 402 1133 607 . 229 404 2733 3168 2870 Explosions 4184 | . . 261 . . . . . . . . . . . . . . . . . 166 . 2540 . . . . 126 . 1091 Melee 8781 | . . . 329 64 2186 770 . 256 . . . . 480 . . 213 110 220 . 464 . 313 360 . 1108 . . 819 1089 Ramming 57 | . 2 . . 39 . . . . . . . . . . . . . . . . . 16 . . . . . . . Kinetic 16768 | 239 1021 412 1813 1942 94 1049 . 405 389 . . . 745 . 162 . . . . 708 402 83 1864 307 . 845 1055 1690 1543 Thermal 8434 | . 87 893 97 . . . . . . 58 . 1060 388 . . . . . . 261 . 2240 1083 356 . . 472 877 562 Explosive 2607 | . . . . . . . . . . . . . . . . . . . . 166 . 1350 . . . . . . 1091 Electromagnetic 3179 | . . . . . . . . . . . . . . . . . . . . . . . . . 229 . 1332 750 868 Impact . | . . . . . . . . . . . . . . . . . . . . . . . . . . . . . . Slashing 3887 | . . . 329 64 2186 770 . 256 . . . . 282 . . . . . . . . . . . . . . . . Piercing 4894 | . . . . . . . . . . . . . 198 . . 213 110 220 . 464 . 313 360 . 1108 . . 819 1089 Highest Corruption 50 | . 2 2 . . . 5 21 21 21 21 18 18 5 13 13 13 13 13 13 . 17 26 26 22 22 26 . 17 50 Average Corruption 12 | . 2 2 . . . 3 12 21 21 19 18 18 1 11 13 13 13 13 13 . 13 22 22 22 12 13 . 10 22 Corruption Purged 35 | . . . . . . . . . . 4 . . . . . . . . . . . . 4 . 22 . . 5 . Corruption Blocked . | . . . . . . . . . . . . . . . . . . . . . . . . . . . . . . Effects 569 | . 27 31 . . . 27 5 24 32 17 2 22 3 4 5 12 17 5 19 . 9 40 123 21 10 11 . 34 69 Message Errors 130 | . 7 9 . . . 8 1 3 9 5 . 4 . 1 2 2 5 1 6 . . 8 33 5 2 1 . 11 7 Matter Fused 140 | . 4 9 . . . 8 2 6 10 5 . 6 1 . 1 3 1 . 7 . 1 8 29 8 2 5 . 9 15 Heat Flow Errors 55 | . 3 2 . . . 4 2 1 3 2 2 1 . . 1 3 3 1 . . 1 4 12 . 1 1 . 2 6 Energy Discharges 62 | . 5 4 . . . 4 . 4 5 3 . 3 . 1 . 1 4 1 2 . 1 3 8 1 2 2 . 3 5 Parts Rejected 10 | . . 1 . . . . . . . . . 1 . 1 . . . . . . . 1 1 . . . . 1 4 Parts Fused 10 | . 1 2 . . . . . 1 . 1 . 1 1 . . . . . . . 1 . 2 . . . . . . Data Loss (minor) 69 | . 3 3 . . . 3 . 9 2 1 . 3 1 . 1 3 1 2 3 . 2 4 15 3 1 . . 4 5 Data Loss (major) 20 | . 1 . . . . . . . 3 . . . . . . . . . 1 . 1 3 6 1 . . . 2 2 Misfires 5 | . 1 1 . . . . . . . . . . . . . . . . . . . . 1 . . . . 1 1 Alerts 9 | . . . . . . . . . . . . . . . . . . . . . 1 1 3 . 1 2 . 1 . Misdirections 31 | . . . . . . . . . . . . . . 1 . . 2 . . . 1 6 4 1 1 . . . 15 Weapon Failures 28 | . 2 . . . . . . . . . . 3 . . . . 1 . . . . 2 9 2 . . . . 9 Overload Shots 6 | . . 3 . . . . . . . . . . . . . . . . . . . . 1 . 1 . . . 1 Effects 1 | . . 1 . . . . . . . . . . . . . . . . . . . . . . . . . . . Short Circuit 1 | . . 1 . . . . . . . . . . . . . . . . . . . . . . . . . . . Overflow Damage 4996 | . . 13 96 1 358 168 . . 21 . . 113 110 . . 22 51 24 . 64 . 279 32 . 851 55 398 1460 880 Projectiles 2989 | . . 13 . . . 16 . . 21 . . 113 110 . . . . . . 33 . 125 . . . 55 398 1460 645 Explosions 130 | . . . . . . . . . . . . . . . . . . . . . . 130 . . . . . . . Melee 1877 | . . . 96 1 358 152 . . . . . . . . . 22 51 24 . 31 . 24 32 . 851 . . . 235 Knockbacks 39 | . . . . . . 10 . . 4 . . . 3 . 1 . . . . . . . 2 . . 4 2 7 6 Impact . | . . . . . . . . . . . . . . . . . . . . . . . . . . . . . . Kinetic 35 | . . . . . . 9 . . 4 . . . 3 . 1 . . . . . . . 2 . . 4 2 5 5 Secondary 4 | . . . . . . 1 . . . . . . . . . . . . . . . . . . . . . 2 1 Self-Inflicted Damage 94 | . . . . . . . . . . . . . . . . . . . . . . 48 . . . . 46 . . Shots 2 | . . . . . . . . . . . . . . . . . . . . . . 1 . . . . 1 . . Rammed 8 | . 1 . . 4 . . . . . . . . . . . . . . . . . 3 . . . . . . . Targets Rammed 9 | . 1 . . 5 . . . . . . . . . . . . . . . . . 3 . . . . . . . Kicked . | . . . . . . . . . . . . . . . . . . . . . . . . . . . . . . Crushed 1 | . . . . 1 . . . . . . . . . . . . . . . . . . . . . . . . . Highest Temperature 513 | . 224 255 54 207 3 169 250 372 246 136 195 290 394 . 513 246 232 178 396 312 184 180 323 112 145 248 320 159 390 Average Temperature 98 | . 39 76 15 59 3 65 111 142 115 60 88 118 145 . 196 92 99 93 144 129 87 63 85 40 104 97 84 90 135 Received Heat Transfer 4122 | . 318 90 792 495 18 216 . 84 36 6 . 36 12 . 81 76 36 . . 102 . 258 877 31 9 61 188 66 234 Effects 21 | . . 2 . . . . . 1 . . . 1 2 . 4 . 2 . 4 . . . . . . . . . 5 Shutdowns 1 | . . . . . . . . . . . . . . . . . . . 1 . . . . . . . . . . Energy Bleed 4 | . . . . . . . . . . . . 1 . . . . . . . . . . . . . . . . 3 Interference 13 | . . 2 . . . . . . . . . . 1 . 4 . 2 . 3 . . . . . . . . . 1 Matter Decay 1 | . . . . . . . . . . . . . 1 . . . . . . . . . . . . . . . . Short Circuit 2 | . . . . . . . . 1 . . . . . . . . . . . . . . . . . . . . 1 Siege Activations . | . . . . . . . . . . . . . . . . . . . . . . . . . . . . . . Martial Activations . | . . . . . . . . . . . . . . . . . . . . . . . . . . . . . . Shielding Activations . | . . . . . . . . . . . . . . . . . . . . . . . . . . . . . . Robots Disrupted . | . . . . . . . . . . . . . . . . . . . . . . . . . . . . . . Combat Hostiles . | . . . . . . . . . . . . . . . . . . . . . . . . . . . . . . Robots Corrupted 11 | . . . . 1 . . . . . . . . . . . . . . . . . . . . 1 . 7 1 1 Combat Hostiles 10 | . . . . . . . . . . . . . . . . . . . . . . . . . 1 . 7 1 1 Parts Fried 34 | . . . . 1 . . . . . . . . . . . . . . . . . . . . . . 13 9 11 Impact Corruptions 2 | . . . . 1 . . . . . . . . . . . . . . . . . . . . . . . 1 . Robots Melted 1 | . . . . . . . . . . . . . . . . . . . . . . . 1 . . . . . . Combat Hostiles 1 | . . . . . . . . . . . . . . . . . . . . . . . 1 . . . . . . Parts Melted 4 | . . . . . . . . . . . . . . . . . . . . . . 2 1 . . . . . 1 Heat Transferred 6322 | . 333 1312 149 . . . . . . 25 . 475 175 . . . . . . 350 . 1355 1197 481 . . 50 . 420 Parts Sabotaged . | . . . . . . . . . . . . . . . . . . . . . . . . . . . . . . Parts Stolen . | . . . . . . . . . . . . . . . . . . . . . . . . . . . . . . Parts Stripped . | . . . . . . . . . . . . . . . . . . . . . . . . . . . . . . Power Chain Reactions 1 | . . . . . . . . . . . . . . . . . . . . . . . . . . . 1 . . Alert | -11 -10 -10 -8 -8 -8 -6 -6 -6 -6 -6 -6 -5 -5 -5 -5 -5 -5 -5 -4 -4 -4 -4 -4 -4 -4 -4 -3 -3 -2 ------- Run | Yrd Mat Sub Mat Sto Rec Fac Was Fac Low Low Dat Pro Fac Was Fac Upp Upp Zhi Pro Fac Was Fac Ext Cet Arc Hub Res Tes Res Maximum Alert Level 4 | . . . 1 . . . . . . . . . . . . . . . . 2 . 4 2 1 1 2 2 2 2 Low Security (%) 69 | 100 100 . 91 100 100 100 100 100 . . . . 100 100 100 . . . . 24 100 11 10 63 99 34 10 7 44 Level 1 22 | . . . 8 . . . . . . . . . . . . . . . . 58 . 2 82 36 . 27 66 90 21 Level 2 5 | . . . . . . . . . . . . . . . . . . . . 17 . 3 6 . . 38 22 1 34 Level 3 1 | . . . . . . . . . . . . . . . . . . . . . . 43 . . . . . . . Level 4 1 | . . . . . . . . . . . . . . . . . . . . . . 39 . . . . . . . Level 5 . | . . . . . . . . . . . . . . . . . . . . . . . . . . . . . . High Security . | . . . . . . . . . . . . . . . . . . . . . . . . . . . . . . Max Security . | . . . . . . . . . . . . . . . . . . . . . . . . . . . . . . Peak Influence 1171 | 10 128 . 234 166 48 151 46 65 . . . . 58 11 15 . . . . 450 108 1171 608 269 207 498 444 412 570 Initial 543 | . . . . 79 48 150 46 . . . . . 42 11 . . . . . 450 82 25 543 192 65 9 231 227 169 Average 161 | . 61 . 115 112 7 76 22 12 . . . . 23 2 2 . . . . 284 75 864 322 196 128 279 304 256 292 Influence Increases 11788 | 25 566 30 1005 648 242 724 . 111 70 120 . 270 300 . 27 15 280 5 . 779 74 1504 1041 267 252 796 793 729 1115 Destroy 0b10 Robot/C 4620 | . 280 . 560 380 20 180 . 40 60 20 . 220 80 . . . 20 . . 100 . 440 560 140 80 300 380 320 440 Destroy 0b10 Robot/NC 595 | 25 55 . 25 40 115 35 . 10 . . . . 20 . . . 5 5 . 20 . 30 45 10 40 40 5 20 50 Destroy Leader 950 | . 80 . 144 128 . 56 . 22 10 10 . 20 28 . . . . . . 26 . 74 56 . . 56 82 62 96 Allied During Kill 640 | . . . . . . 5 . . . . . . . . . . . . . . . 65 132 68 120 250 . . . Trap Triggered on 0b10 10 | . . . . . . . . . . . . . 10 . . . . . . . . . . . . . . . . Successful Hack 412 | . 29 . 35 5 14 21 . 16 . . . . 98 . . . . . . 42 . 32 21 9 . . 27 29 34 Select Force Hacks 150 | . 60 . . . 90 . . . . . . . . . . . . . . . . . . . . . . . . Disable Machine 765 | . . . . 60 . 45 . . . . . . 15 . 15 . . . . 15 . 390 15 . . 60 . 90 60 Anti-Garrison Action 150 | . . . . . . . . . . . . . . . . . . . . . . . . . . . 150 . . Destroy Structure 1171 | . 2 . 16 5 3 22 . 8 . . . . 34 . 12 . . . . 66 74 278 92 40 12 90 74 58 285 Advance Influence 600 | . . . . . . 150 . . . . . . . . . . . . . 450 . . . . . . . . . Partial Spotted 60 | . . . 15 15 . 15 . 15 . . . . . . . . . . . . . . . . . . . . . Lose Combat Pursuer 1665 | . 60 30 210 15 . 195 . . . 90 . 30 15 . . 15 255 . . 60 . 195 120 . . . 75 150 150 Influence Decreases 11248 | 25 506 90 817 712 366 590 134 111 70 50 70 203 335 32 27 15 130 155 . 544 273 429 1808 448 388 383 828 832 877 Entered New Map 2088 | . . 29 . 109 76 . 88 . . . 70 . 25 21 . . . 150 . . 153 11 568 152 98 18 209 178 133 Time Decay 7318 | 25 486 61 607 553 290 530 46 111 70 50 . 193 308 11 27 15 130 5 . 374 100 318 670 206 270 265 589 494 514 Lost Part 580 | . 20 . 60 50 . . . . . . . 10 . . . . . . . 10 . 70 60 10 . 20 30 10 230 Lost Ally 512 | . . . . . . 60 . . . . . . 2 . . . . . . 10 20 30 210 80 20 80 . . . Purge Threat 750 | . . . 150 . . . . . . . . . . . . . . . . 150 . . 300 . . . . 150 . Squads Dispatched 64 | . 4 . 4 . . 10 . 1 . . . . 6 . . . 1 . . 6 . 3 1 . . 2 7 7 12 Investigation 15 | . 2 . 1 . . 3 . . . . . . 2 . . . . . . 2 . . 1 . . . 4 . . Extermination 19 | . . . . . . 5 . . . . . . 3 . . . . . . 2 . 1 . . . 1 . 3 4 Reinforcement 23 | . 2 . 3 . . 2 . 1 . . . . . . . . . . . 2 . 2 . . . 1 3 4 3 Assault 3 | . . . . . . . . . . . . . . . . . 1 . . . . . . . . . . . 2 Garrison 4 | . . . . . . . . . . . . . 1 . . . . . . . . . . . . . . . 3 Intercept . | . . . . . . . . . . . . . . . . . . . . . . . . . . . . . . Searches Triggered . | . . . . . . . . . . . . . . . . . . . . . . . . . . . . . . Data Miner Redirects 2 | . . . . . . . . . . . . . . . . . . . . . . . . . . . . . 2 Construction Impeded 5 | . . . . . . 1 . . . . . . . . . . . . . . . 1 . . . . . . 3 Haulers Reinforced 3 | . . . . . . 1 . 1 . . . . . . . . . . . 1 . . . . . . . . . Active Scanning Responses . | . . . . . . . . . . . . . . . . . . . . . . . . . . . . . . Cargo Convoy Interrupts 1 | . . . . . . . . . . . . . . . . . . . . . . . . . . . . . 1 Stealth | -11 -10 -10 -8 -8 -8 -6 -6 -6 -6 -6 -6 -5 -5 -5 -5 -5 -5 -5 -4 -4 -4 -4 -4 -4 -4 -4 -3 -3 -2 --------- Run | Yrd Mat Sub Mat Sto Rec Fac Was Fac Low Low Dat Pro Fac Was Fac Upp Upp Zhi Pro Fac Was Fac Ext Cet Arc Hub Res Tes Res Distress Signals 29 | . 2 . 7 2 1 . . 1 . . . . 1 . . . . . . . . 1 4 2 . 2 2 . 4 Communications Jammed 87 | . . . . . . . . . . . . . . . 20 . . . . . . . . . . . . . 67 Distress Signals 32 | . . . . . . . . . . . . . . . . . . . . . . . . . . . . . 32 Times Spotted 503 | . 28 10 45 31 2 23 6 7 4 4 . 13 11 6 8 6 9 . 4 10 5 40 38 11 11 14 33 40 84 Peak Tracking Total 17 | . 4 3 12 5 1 5 6 3 2 6 . 5 4 6 4 4 12 . 1 7 4 11 6 5 2 4 6 6 17 Tactical Retreats 74 | . 4 1 9 1 1 6 . . . 2 . 2 1 . 1 3 6 . . 2 . 7 4 . . . 2 9 13 Traps | -11 -10 -10 -8 -8 -8 -6 -6 -6 -6 -6 -6 -5 -5 -5 -5 -5 -5 -5 -4 -4 -4 -4 -4 -4 -4 -4 -3 -3 -2 ------- Run | Yrd Mat Sub Mat Sto Rec Fac Was Fac Low Low Dat Pro Fac Was Fac Upp Upp Zhi Pro Fac Was Fac Ext Cet Arc Hub Res Tes Res Traps Triggered 19 | . 1 1 . . . 1 . 1 . . . . 2 . . . . . . 1 . 3 2 . . . . 3 4 Indirectly . | . . . . . . . . . . . . . . . . . . . . . . . . . . . . . . Trap Hack Attempts 29 | . . . . . . . . . . . . . 29 . . . . . . . . . . . . . . . . Triggered . | . . . . . . . . . . . . . . . . . . . . . . . . . . . . . . Disarmed . | . . . . . . . . . . . . . . . . . . . . . . . . . . . . . . Reprogrammed 2 | . . . . . . . . . . . . . 2 . . . . . . . . . . . . . . . . Reused 1 | . . . . . . . . . . . . . 1 . . . . . . . . . . . . . . . . Traps Extracted . | . . . . . . . . . . . . . . . . . . . . . . . . . . . . . . Installed . | . . . . . . . . . . . . . . . . . . . . . . . . . . . . . . Triggered 1 | . . . . . . . . . . . . . 1 . . . . . . . . . . . . . . . . Machines | -11 -10 -10 -8 -8 -8 -6 -6 -6 -6 -6 -6 -5 -5 -5 -5 -5 -5 -5 -4 -4 -4 -4 -4 -4 -4 -4 -3 -3 -2 ---------- Run | Yrd Mat Sub Mat Sto Rec Fac Was Fac Low Low Dat Pro Fac Was Fac Upp Upp Zhi Pro Fac Was Fac Ext Cet Arc Hub Res Tes Res Machines Disabled 55 | . . 1 . 4 . 3 . . . . . . 1 . 1 1 . . . 1 . 26 2 . . 4 1 6 4 Max in Single Turn 18 | . . 1 . 1 . 1 . . . . . . 1 . 1 1 . . . 1 . 18 1 . . 1 1 1 1 Garrison Access 9 | . . . 1 . . . . . . . . . 1 . . . . . . 2 . 2 . . . . 2 . 1 Network Hub 3 | . . . . . . . . . . . . . . . . . . . . . . . . . . 3 . . . Machines Repaired . | . . . . . . . . . . . . . . . . . . . . . . . . . . . . . . Machines Dismantled . | . . . . . . . . . . . . . . . . . . . . . . . . . . . . . . Machines Sabotaged . | . . . . . . . . . . . . . . . . . . . . . . . . . . . . . . Overloaded Fab Kills . | . . . . . . . . . . . . . . . . . . . . . . . . . . . . . . Hacking | -11 -10 -10 -8 -8 -8 -6 -6 -6 -6 -6 -6 -5 -5 -5 -5 -5 -5 -5 -4 -4 -4 -4 -4 -4 -4 -4 -3 -3 -2 --------- Run | Yrd Mat Sub Mat Sto Rec Fac Was Fac Low Low Dat Pro Fac Was Fac Upp Upp Zhi Pro Fac Was Fac Ext Cet Arc Hub Res Tes Res Machines Accessed 142 | . 9 2 13 9 8 13 . 3 1 . 4 . 13 . 3 1 1 4 . 15 . 9 9 1 . 2 5 8 9 Terminals 72 | . 6 . 8 7 3 6 . 2 . . . . 6 . 1 . . . . 8 . 3 8 1 . 2 . 6 5 Fabricators 9 | . . . . . . 2 . . . . . . 1 . 1 . . . . 2 . 1 . . . . 2 . . Repair Stations 7 | . 1 . 1 . . 1 . . . . . . 1 . . . . . . . . 1 1 . . . . 1 . Recycling Units 22 | . 2 . 1 1 4 2 . 1 . . . . 3 . 1 . . . . 2 . 2 . . . . 1 . 2 Scanalyzers 6 | . . . 2 . . . . . . . . . 1 . . . . . . 1 . . . . . . . 1 1 Garrison Access 12 | . . . 1 1 . 2 . . . . . . 1 . . . . . . 2 . 2 . . . . 2 . 1 Total Hacks 387 | . 24 6 40 20 24 26 . 5 1 . 27 . 32 . 6 1 1 16 . 34 . 17 28 2 . 5 19 29 24 Successful 196 | . 13 6 23 9 18 11 . 1 1 . 27 . 17 . 1 1 1 16 . 14 . 8 11 1 . 3 3 7 4 Failed 191 | . 11 . 17 11 6 15 . 4 . . . . 15 . 5 . . . . 20 . 9 17 1 . 2 16 22 20 Catastrophic 46 | . 1 . 2 3 1 2 . 1 . . . . 1 . 1 . . . . 6 . 3 2 1 . . 3 9 10 Database Lockouts . | . . . . . . . . . . . . . . . . . . . . . . . . . . . . . . Manual 137 | . 16 . 17 17 14 11 . 3 . . . . 7 . 1 . . . . 10 . 5 16 1 . 4 . 6 9 Terminals 209 | . 15 . 29 18 13 13 . 4 . . . . 17 . 1 . . . . 20 . 8 26 2 . 5 . 23 15 Fabricators 23 | . . . . . . 4 . . . . . . 2 . 3 . . . . 6 . 1 . . . . 7 . . Repair Stations 17 | . 3 . 2 . . 2 . . . . . . 2 . . . . . . . . 2 2 . . . . 4 . Recycling Units 38 | . 6 . 1 1 9 3 . 1 . . . . 6 . 2 . . . . 3 . 2 . . . . 1 . 3 Scanalyzers 16 | . . . 6 . . . . . . . . . 4 . . . . . . 2 . . . . . . . 2 2 Garrison Access 30 | . . . 2 1 . 4 . . . . . . 1 . . . . . . 3 . 4 . . . . 11 . 4 Terminal Hacks 97 | . 1 6 8 2 6 1 . . 1 . 27 . 6 . . 1 1 16 . 7 . 2 6 1 . 1 . 3 1 Record 21 | . . 5 . . . . . . . . 11 . . . . . . 5 . . . . . . . . . . . Part Schematic 16 | . . . . 2 1 . . . . . 8 . 1 . . . . 3 . . . . . . . . . 1 . Robot Schematic 5 | . . . . . . . . . . . 5 . . . . . . . . . . . . . . . . . . Robot Analysis 6 | . 1 . . . 1 . . . . . . . . . . . . 4 . . . . . . . . . . . Prototype ID Bank 14 | . . . 2 . 1 . . . . . 3 . 2 . . . . 4 . 1 . . 1 . . . . . . Open Door 5 | . . . . . . . . . 1 . . . . . . 1 1 . . . . . . 1 . . . 1 . Branch Access Points 5 | . . . 1 . . . . . . . . . 1 . . . . . . 1 . 1 . . . . . . 1 Terminal Index 4 | . . . 1 . . 1 . . . . . . 1 . . . . . . 1 . . . . . . . . . Alert Level 3 | . . . . . . . . . . . . . 1 . . . . . . . . 1 1 . . . . . . Unreport Threat 5 | . . . 1 . . . . . . . . . . . . . . . . 1 . . 2 . . . . 1 . Locate Traps 1 | . . . . . . . . . . . . . . . . . . . . 1 . . . . . . . . . Surveillance Status 1 | . . . 1 . . . . . . . . . . . . . . . . . . . . . . . . . . Hauler Manifests 2 | . . . 1 . . . . . . . . . . . . . . . . 1 . . . . . . . . . Zone Layout 6 | . . . 1 . 1 . . . . . . . . . . . . . . 1 . . 2 . . 1 . . . Proto ID Catalog 1 | . . 1 . . . . . . . . . . . . . . . . . . . . . . . . . . . Release Object 2 | . . . . . 2 . . . . . . . . . . . . . . . . . . . . . . . . Fabricator Hacks 10 | . . . . . . 4 . . . . . . . . 1 . . . . 2 . 1 . . . . 2 . . Network Status 5 | . . . . . . 1 . . . . . . . . 1 . . . . 1 . 1 . . . . 1 . . Load Schematic 1 | . . . . . . 1 . . . . . . . . . . . . . . . . . . . . . . . Build 4 | . . . . . . 2 . . . . . . . . . . . . . 1 . . . . . . 1 . . Repair Station Hacks 10 | . 2 . 2 . . 2 . . . . . . 2 . . . . . . . . 2 . . . . . . . Scan Component 5 | . 1 . 1 . . 1 . . . . . . 1 . . . . . . . . 1 . . . . . . . Repair 5 | . 1 . 1 . . 1 . . . . . . 1 . . . . . . . . 1 . . . . . . . Recycling Unit Hacks 13 | . 2 . 1 1 2 2 . . . . . . 3 . . . . . . 1 . . . . . . . . 1 Retrieve Components 13 | . 2 . 1 1 2 2 . . . . . . 3 . . . . . . 1 . . . . . . . . 1 Scanalyzer 9 | . . . 4 . . . . . . . . . 3 . . . . . . . . . . . . . . 1 1 Insert Component 6 | . . . 2 . . . . . . . . . 2 . . . . . . . . . . . . . . 1 1 Analyze 3 | . . . 2 . . . . . . . . . 1 . . . . . . . . . . . . . . . . Garrison Access Hacks 7 | . . . 1 . . . . . . . . . 1 . . . . . . 2 . 2 . . . . 1 . . Seal Access 7 | . . . 1 . . . . . . . . . 1 . . . . . . 2 . 2 . . . . 1 . . Unauthorized Hacks 50 | . 8 . 7 6 10 2 . 1 . . . . 2 . . . . . . 2 . 1 5 . . 2 . 3 1 Terminals 41 | . 6 . 7 6 5 2 . 1 . . . . 2 . . . . . . 2 . 1 4 . . 2 . 2 1 Track 1 | . . . . . . . . . . . . . . . . . . . . . . . 1 . . . . . . Assimilate 3 | . . . . . . . . . . . . . 1 . . . . . . 1 . . 1 . . . . . . Botnet 18 | . 1 . 1 1 2 2 . 1 . . . . 1 . . . . . . 1 . 1 2 . . 2 . 2 1 Operators 1 | . . . 1 . . . . . . . . . . . . . . . . . . . . . . . . . . Skim 18 | . 5 . 5 5 3 . . . . . . . . . . . . . . . . . . . . . . . . Fabricators . | . . . . . . . . . . . . . . . . . . . . . . . . . . . . . . Repair Stations 1 | . . . . . . . . . . . . . . . . . . . . . . . 1 . . . . . . Patch 1 | . . . . . . . . . . . . . . . . . . . . . . . 1 . . . . . . Recycling Units 7 | . 2 . . . 5 . . . . . . . . . . . . . . . . . . . . . . . . Reject 1 | . . . . . 1 . . . . . . . . . . . . . . . . . . . . . . . . Mask 1 | . . . . . 1 . . . . . . . . . . . . . . . . . . . . . . . . Tunnel 5 | . 2 . . . 3 . . . . . . . . . . . . . . . . . . . . . . . . Scanalyzers 1 | . . . . . . . . . . . . . . . . . . . . . . . . . . . . 1 . Researchers 1 | . . . . . . . . . . . . . . . . . . . . . . . . . . . . 1 . Garrison Access . | . . . . . . . . . . . . . . . . . . . . . . . . . . . . . . Data Cores Recovered 3 | . . . . 1 . . . . . . . . . . . . . . . . . . . . . 1 . 1 . Used . | . . . . . . . . . . . . . . . . . . . . . . . . . . . . . . Hacking Detections 103 | . 8 . 9 6 6 10 . 3 . . . . 11 . 3 . . . . 12 . 7 8 . . 2 5 6 7 Full Trace Events 10 | . . . 1 1 . 3 . . . . . . 2 . . . . . . 2 . . . . . . 1 . . Feedback Events 2 | . . . . . . 1 . . . . . . 1 . . . . . . . . . . . . . . . . Corruption 2 | . . . . . . 1 . . . . . . 1 . . . . . . . . . . . . . . . . Feedback Blocked . | . . . . . . . . . . . . . . . . . . . . . . . . . . . . . . Robot Schematics Acquired 6 | . . . . . . . . . . . 5 . . . . . . . . . . . . . . . . 1 . Robots Built 3 | . . . . . . 3 . . . . . . . . . . . . . . . . . . . . . . . Authchips . | . . . . . . . . . . . . . . . . . . . . . . . . . . . . . . Time 152 | . . . . . . 152 . . . . . . . . . . . . . . . . . . . . . . . Total Robot Build Rating 15 | . . . . . . 15 . . . . . . . . . . . . . . . . . . . . . . . Part Schematics Acquired 21 | . . . 1 2 1 . . . . . 8 . 2 . . . . 3 . . . . . . . . . 4 . Parts Built 6 | . . . . . . 2 . . . . . . . . . . . . . 2 . . . . . . 2 . . Authchips . | . . . . . . . . . . . . . . . . . . . . . . . . . . . . . . Time 135 | . . . . . . 25 . . . . . . . . . . . . . 64 . . . . . . 46 . . Total Part Build Rating 36 | . . . . . . 2 . . . . . . . . . . . . . 16 . . . . . . 18 . . Parts Repaired 5 | . 1 . 1 . . 1 . . . . . . 1 . . . . . . . . 1 . . . . . . . Time 180 | . 26 . 44 . . 44 . . . . . . 22 . . . . . . . . 44 . . . . . . . Parts Recycled . | . . . . . . . . . . . . . . . . . . . . . . . . . . . . . . Recycled Matter . | . . . . . . . . . . . . . . . . . . . . . . . . . . . . . . Retrieved Matter . | . . . . . . . . . . . . . . . . . . . . . . . . . . . . . . Retrieved Components 41 | . 11 . 9 9 1 2 . . . . . . 2 . . . . . . 3 . . . . . . . . 4 Parts Scanalyzed 2 | . . . 1 . . . . . . . . . 1 . . . . . . . . . . . . . . . . Part Schematics Acquired 2 | . . . 1 . . . . . . . . . 1 . . . . . . . . . . . . . . . . Parts Damaged 2 | . . . 2 . . . . . . . . . . . . . . . . . . . . . . . . . . Bothacking | -11 -10 -10 -8 -8 -8 -6 -6 -6 -6 -6 -6 -5 -5 -5 -5 -5 -5 -5 -4 -4 -4 -4 -4 -4 -4 -4 -3 -3 -2 ------------ Run | Yrd Mat Sub Mat Sto Rec Fac Was Fac Low Low Dat Pro Fac Was Fac Upp Upp Zhi Pro Fac Was Fac Ext Cet Arc Hub Res Tes Res Used RIF Installer . | . . . . . . . . . . . . . . . . . . . . . . . . . . . . . . Robots Hacked 8 | . . . . . . . . . . . . . . . . . . . . 1 . . 3 . 2 . 2 . . Non-combat 3 | . . . . . . . . . . . . . . . . . . . . 1 . . 1 . 1 . . . . Combat 5 | . . . . . . . . . . . . . . . . . . . . . . . 2 . 1 . 2 . . Robot Hacks Applied 9 | . . . . . . . . . . . . . . . . . . . . 1 . . 4 . 2 . 2 . . parse_system 6 | . . . . . . . . . . . . . . . . . . . . . . . 3 . 1 . 2 . . find_chute 1 | . . . . . . . . . . . . . . . . . . . . 1 . . . . . . . . . check_alert 2 | . . . . . . . . . . . . . . . . . . . . . . . 1 . 1 . . . . Relay Couplers Released 9 | . . . . . . . . . . . . . . . . . . . . . . 2 . . . . 2 . 5 Machine Destruction 6 | . . . . . . . . . . . . . . . . . . . . . . 2 . . . . 2 . 2 Programmers 3 | . . . . . . . . . . . . . . . . . . . . . . . . . . . . . 3 Fabnet Peak Effective % . | . . . . . . . . . . . . . . . . . . . . . . . . . . . . . . Robots Rewired 12 | . . . . . . . . . . . . . . . . . . . . . . . 12 . . . . . . Allies Hacked 1 | . . . . . . . . . . . . . 1 . . . . . . . . . . . . . . . . Hacks Repelled . | . . . . . . . . . . . . . . . . . . . . . . . . . . . . . . Allies | -11 -10 -10 -8 -8 -8 -6 -6 -6 -6 -6 -6 -5 -5 -5 -5 -5 -5 -5 -4 -4 -4 -4 -4 -4 -4 -4 -3 -3 -2 -------- Run | Yrd Mat Sub Mat Sto Rec Fac Was Fac Low Low Dat Pro Fac Was Fac Upp Upp Zhi Pro Fac Was Fac Ext Cet Arc Hub Res Tes Res Total Allies 46 | . . . . . . 3 . . . . . . 1 . . . . . . 1 19 . 17 5 . . . . . Largest Group 19 | . . . . . . 3 . . . . . . 1 . . . . . . 1 19 11 7 7 7 5 . . . Highest-Rated Group 702 | . . . . . . 87 . . . . . . 26 . . . . . . 10 702 456 386 656 656 409 . . . Highest-Rated Ally 159 | . . . . . . 29 . . . . . . 26 . . . . . . 10 50 50 159 159 151 96 . . . Total Orders 1 | . . . . . . . . . . . . . . . . . . . . . . . . . . 1 . . . STAY 1 | . . . . . . . . . . . . . . . . . . . . . . . . . . 1 . . . Ally Attacks 386 | . . . . . . 16 . . . . . . . . . . . . . . 105 19 112 28 31 75 . . . Total Damage 16286 | . . . . . . 304 . . . . . . . . . . . . . . 5520 703 3633 1412 1054 3660 . . . Kills 77 | . . . . . . 3 . . . . . . . . . . . . . . 13 4 25 9 2 21 . . . Allies Corrupted 1 | . . . . . . . . . . . . . . . . . . . . . . . . . . 1 . . . Allies Melted 1 | . . . . . . . . . . . . . . . . . . . . . . . . . . 1 . . . Intel | -11 -10 -10 -8 -8 -8 -6 -6 -6 -6 -6 -6 -5 -5 -5 -5 -5 -5 -5 -4 -4 -4 -4 -4 -4 -4 -4 -3 -3 -2 ------- Run | Yrd Mat Sub Mat Sto Rec Fac Was Fac Low Low Dat Pro Fac Was Fac Upp Upp Zhi Pro Fac Was Fac Ext Cet Arc Hub Res Tes Res Active Infowar (turns) 27151 | 171 2492 2091 3399 1654 1174 1459 114 478 659 362 54 372 798 77 156 361 379 124 393 808 200 713 2599 425 596 710 1844 1173 1316 Sensors 14105 | . . . . . . 1204 40 478 111 . . . 792 77 144 361 379 124 393 804 200 713 2599 425 596 709 1844 1172 940 Terrain 9634 | . 85 . 3289 1654 1174 . . . . . . . . . . . . . . 805 104 565 157 . . 472 1329 . . Structural 3031 | . . . . . . 132 74 . . . . . 754 50 155 360 331 114 393 410 . . . . . . . . 258 Seismic 10237 | 171 2407 2091 3010 998 . . . . 547 362 54 372 225 . . . . . . . . . . . . . . . . Machine Analysis 479 | . . . . . . 479 . . . . . . . . . . . . . . . . . . . . . . . Cloaking 1 | . . . . . . . . . . . . . . . . . . . . . . . 1 . . . . . . Jamming 671 | . . . . . . 3 . . 1 . . . . . 12 . 15 . . . . . . . . . . . 640 ECM 475 | . . . . . . 24 . . . . . . . . 39 51 . . . . . 117 . . . . . 66 178 Robot Analysis Total 6 | . 1 . . . 1 . . . . . . . . . . . . 4 . . . . . . . . . . . Derelict Logs Recovered 8 | . . 2 . . . . . . 2 1 . . . . . . 2 . 1 . . . . . . . . . . Drone Launches . | . . . . . . . . . . . . . . . . . . . . . . . . . . . . . . Drone Recoveries . | . . . . . . . . . . . . . . . . . . . . . . . . . . . . . . Exploration | -11 -10 -10 -8 -8 -8 -6 -6 -6 -6 -6 -6 -5 -5 -5 -5 -5 -5 -5 -4 -4 -4 -4 -4 -4 -4 -4 -3 -3 -2 ------------- Run | Yrd Mat Sub Mat Sto Rec Fac Was Fac Low Low Dat Pro Fac Was Fac Upp Upp Zhi Pro Fac Was Fac Ext Cet Arc Hub Res Tes Res Turns Passed 31690 | 262 2510 2112 3399 1654 4828 1496 116 526 710 367 54 509 904 86 185 371 379 124 407 879 200 713 2599 425 596 710 1844 1310 1415 Spaces Moved 22340 | 127 949 958 1326 784 2154 1447 144 580 1009 562 94 698 1094 137 248 575 614 167 613 1217 217 776 1379 282 268 521 1262 945 1193 Core 4 | 2 . 2 . . . . . . . . . . . . . . . . . . . . . . . . . . . Treads 6320 | 125 949 402 841 784 1030 . . 502 157 . . . . . . . . . . 282 217 434 198 . . . 203 . 196 Legs 780 | . . . . . 50 . . . . . . . . . . . . . . . . . 730 . . . . . . Wheels 1889 | . . 554 485 . 850 . . . . . . . . . . . . . . . . . . . . . . . . Hover 13347 | . . . . . 224 1447 144 78 852 562 94 698 1094 137 248 575 614 167 613 935 . 342 451 282 268 521 1059 945 997 Flight . | . . . . . . . . . . . . . . . . . . . . . . . . . . . . . . Fastest Speed 49 | 50 160 130 117 148 89 74 74 74 58 58 58 58 58 58 58 49 49 49 49 49 49 49 64 109 109 109 109 70 51 Average Speed 101 | 158 191 177 178 155 141 78 74 74 60 58 58 58 58 58 58 50 49 49 49 49 49 55 133 109 109 109 127 91 73 Slowest Speed 850 | 160 240 850 320 160 225 89 74 74 74 58 58 58 58 58 58 58 49 49 49 49 49 64 260 109 109 109 224 109 158 Overloaded Moves . | . . . . . . . . . . . . . . . . . . . . . . . . . . . . . . Propulsion Burnouts . | . . . . . . . . . . . . . . . . . . . . . . . . . . . . . . Robots Hopped . | . . . . . . . . . . . . . . . . . . . . . . . . . . . . . . Potential Cave-ins 11 | . . . . . . . . . . . . . . . . . . . . . . . . . . . . . 11 Cave-ins Triggered 2 | . . . . . . . . . . . . . . . . . . . . . . . . . . . . . 2 Teleports 1 | . . . . . . . . . . . . . . . . . . . . . . . . . . . . . 1 Exploration Rate (%) 62 | 9 99 39 79 97 99 32 73 14 82 65 71 90 34 92 7 65 83 61 86 36 79 29 98 67 81 43 44 85 36 Regions Visited 29 Branch Regions 16 Pre-discovered Areas 14 | . 4 2 . 1 3 . . . . . 1 . . . . . . 3 . . . . . . . . . . . Known Exits Taken 20 | . 1 1 1 1 1 . . 1 1 . . 1 . . 1 1 1 1 1 . . 1 1 1 1 1 1 1 . Unknown Exits Taken 3 | 1 . . . . . . . . . 1 1 . . . . . . . . . . . . . . . . . . Scrap Searched 25 | . . 6 . . . . . . 8 1 . 1 . . . 2 2 . 5 . . . . . . . . . . Spaces Dug 251 | . . 1 11 3 3 21 . 8 . . . . 8 . 4 1 17 . 16 33 2 48 4 . . 1 7 15 48 Terrain Destroyed 542 | . . 41 13 4 5 21 . 8 . . . 12 17 . 8 1 17 . 16 45 2 127 28 . . 13 39 27 98 Melee 120 | . . . 11 3 3 20 . 8 . . . . 8 . 4 1 6 . 1 20 2 6 3 . . 1 . 6 17 Projectile 219 | . . 4 2 1 2 1 . . . . . 12 9 . 4 . 11 . 15 7 . 22 25 . . 12 23 21 48 AOE 203 | . . 37 . . . . . . . . . . . . . . . . . 18 . 99 . . . . 16 . 33 Terrain Rammed . | . . . . . . . . . . . . . . . . . . . . . . . . . . . . . . Walls Destroyed . | . . . . . . . . . . . . . . . . . . . . . . . . . . . . . . Machines Disabled . | . . . . . . . . . . . . . . . . . . . . . . . . . . . . . . Actions | -11 -10 -10 -8 -8 -8 -6 -6 -6 -6 -6 -6 -5 -5 -5 -5 -5 -5 -5 -4 -4 -4 -4 -4 -4 -4 -4 -3 -3 -2 --------- Run | Yrd Mat Sub Mat Sto Rec Fac Was Fac Low Low Dat Pro Fac Was Fac Upp Upp Zhi Pro Fac Was Fac Ext Cet Arc Hub Res Tes Res Total 29696 | 157 1513 1301 2201 1063 3916 1713 154 652 1099 601 93 766 1316 141 274 645 669 204 710 1430 301 965 2008 372 511 636 1455 1287 1543 Wait 4779 | 5 469 267 670 119 1568 119 . 20 52 27 . 18 88 1 13 48 35 25 87 71 72 67 341 40 189 64 51 166 87 Move 22312 | 126 948 957 1325 783 2153 1447 143 579 1008 561 93 697 1094 136 247 574 613 166 612 1217 216 775 1378 281 267 520 1261 944 1191 Hop . | . . . . . . . . . . . . . . . . . . . . . . . . . . . . . . Pick Up 287 | 5 7 12 28 10 63 13 3 6 4 1 . 1 15 . . 1 2 1 1 22 1 5 29 6 3 5 12 13 18 Fast Attach 188 | 7 3 4 15 7 1 6 . 7 8 3 . 2 13 1 . 3 . 4 . 8 1 7 9 2 6 4 26 24 17 Attach 88 | . 3 7 6 4 . 3 1 2 . 2 . 3 2 . . 1 . 1 . 3 . 6 7 2 2 3 5 5 20 Detach 81 | . 3 2 4 . 8 3 . 4 1 2 . 2 2 . . 1 . 1 . 4 1 7 5 2 3 1 6 8 11 Swap 225 | . 12 5 29 31 2 36 2 3 4 2 . 6 10 3 5 4 4 . . 16 2 10 4 2 1 2 8 11 11 Drop 391 | . 2 5 29 23 77 15 5 11 12 2 . 3 22 . . 6 . 3 1 29 1 9 26 7 4 9 37 31 22 Fire 844 | 14 65 42 73 69 3 30 . 7 10 1 . 34 22 . 4 . 5 . 8 21 5 47 97 30 13 27 47 51 119 Melee 366 | . . . 20 7 41 36 . 13 . . . . 19 . 5 7 10 3 1 38 2 29 32 . 23 1 2 33 44 Ram 3 | . . . . . . . . . . . . . . . . . . . . . . 3 . . . . . . . Kick . | . . . . . . . . . . . . . . . . . . . . . . . . . . . . . . Crush 6 | . 1 . . 5 . . . . . . . . . . . . . . . . . . . . . . . . . Escape Stasis 15 | . . . . . . . . . . . . . . . . . . . . . . . 13 . . . . . 2 Rewire 67 | . . . . . . . . . . . . . . . . . . . . . . . 67 . . . . . . Trap 29 | . . . . . . . . . . . . . 29 . . . . . . . . . . . . . . . . Miscellaneous 15 | . . . 2 5 . 5 . . . . . . . . . . . . . 1 . . . . . . . 1 1 Route ------- -11/Scrapyard -10/Materials (discovered 6 exits: [*Mat x3] / [*Min x2] / *Sub) -10/Subcaves (discovered 3 exits: *Mat x2 / Rec) -8/Materials (discovered 4 exits: *Fac x2 / *Sto x2) -8/Storage (discovered 2 exits: *Fac / *Rec) -8/Recycling -6/Factory (discovered 3 exits: *Fac x2 / *Low) -6/Waste -6/Factory -6/Lower Caves (discovered 2 exits: *Low / *Dat) -6/Lower Caves (discovered 2 exits: *Fac / *Dat) -6/Data Miner -5/Proximity Caves -5/Factory (discovered 4 exits: *Fac x2 / *Upp x2) -5/Waste -5/Factory -5/Upper Caves -5/Upper Caves (discovered 2 exits: *Fac / *Zhi) -5/Zhirov -4/Proximity Caves -4/Factory (discovered 8 exits: *Res x3 / *Upp x2 / Ext x2 / Arm) -4/Waste -4/Factory (discovered 6 exits: *Res / Upp x2 / *Ext x2 / Arm) -4/Extension (discovered 2 exits: *Res / *Cet) -4/Cetus (discovered 2 exits: *Res / *Arc) -4/Archives (discovered 3 exits: *Res / *Hub x2) -4/Hub_04(d) -3/Research (discovered 3 exits: *Res x2 / *Tes) -3/Testing -2/Research (discovered 2 exits: Qua x2) History --------- Turn | Location | Event 30 | -11/Scrapyard | Discovered new exit (range 15) 263 | -11/Scrapyard | Entered Materials 302 | -10/Materials | Build established: Mutant 802 | -10/Materials | Discovered new exit (range 8) 893 | -10/Materials | Discovered new exit (range 16) 993 | -10/Materials | Repaired Lgt. Treads? 1394 | -10/Materials | Discovered new exit (range 10) 1492 | -10/Materials | Discovered new exit (range 12) 1878 | -10/Materials | Discovered new exit (range 10) 2551 | -10/Materials | Learned location of Subcaves (-10) 2576 | -10/Materials | Learned Storage trap positions 2611 | -10/Materials | Identified exit to Subcaves 2773 | -10/Materials | Entered Subcaves 2774 | -10/Subcaves | Approached by a straggling Scientist 2774 | -10/Subcaves | Identified exit to Materials 2774 | -10/Subcaves | Identified exit to Recycling 2874 | -10/Subcaves | Learned location of Recycling (-8) 2909 | -10/Subcaves | Visited 4L-MR0's lab 2937 | -10/Subcaves | Found Flightbrick 3255 | -10/Subcaves | Visited Clippyterm 3262 | -10/Subcaves | Learned Factory trap positions 3262 | -10/Subcaves | Learned Factory emergency access door positions 3468 | -10/Subcaves | Build established: Scavenger-Mutant 3746 | -10/Subcaves | Disturbed a concealed Subdweller 3749 | -10/Subcaves | Core integrity fell below 50% 4710 | -10/Subcaves | Core integrity fell below 20% 4744 | -10/Subcaves | Lost 3 parts (2n1u) 4885 | -10/Subcaves | Entered Materials 4885 | -8/Materials | Evolved 4 slots: Propulsion x3, Utility x1 5138 | -8/Materials | Repaired Broken Multitool 5677 | -8/Materials | Discovered new exit (range 16) 5815 | -8/Materials | Destroyed 9 combat bots 5940 | -8/Materials | Build established: Mutant 6427 | -8/Materials | Discovered new exit (range 10) 6760 | -8/Materials | Build established: Scavenger-Mutant 7495 | -8/Materials | Discovered new exit (range 2) 7963 | -8/Materials | Identified exit to Storage 8103 | -8/Materials | Discovered new exit (range 16) 8284 | -8/Materials | Entered Storage 8285 | -8/Storage | Loaded intel: 21 trap records 8653 | -8/Storage | Core integrity fell below 50% 9226 | -8/Storage | Used back door to open Recycling access 9226 | -8/Storage | Discovered exit to Recycling (range 5) 9684 | -8/Storage | Identified exit to Factory 9694 | -8/Storage | Build established: Mutant 9742 | -8/Storage | Learned location of 1 exit from Lower Caves 9828 | -8/Storage | Learned location of 1 exit from Storage 9889 | -8/Storage | Learned location of 1 exit from Extension 9938 | -8/Storage | Entered Recycling 9939 | -8/Recycling | Identified exit to Factory 11105 | -8/Recycling | Entered Scraplab 11113 | -8/Recycling | Found Prototype Device 11113 | -8/Recycling | Identified Scrap Engine 12060 | -8/Recycling | Build established: Construct 14766 | -8/Recycling | Entered Factory 14766 | -6/Factory | Evolved 4 slots: Power x1, Utility x2, Weapon x1 14767 | -6/Factory | Identified exit to Factory 14768 | -6/Factory | Loaded intel: 105 trap records 14830 | -6/Factory | Discovered exit to Factory (range 6) 15335 | -6/Factory | Repaired Lyr. Light Armor Plating 15526 | -6/Factory | Fabricated ECM Suite (x2) 15794 | -6/Factory | Discovered new exit (range 10) 15803 | -6/Factory | Identified exit to Lower Caves 15807 | -6/Factory | Fabricated G-50 Soldier? 16262 | -6/Factory | Manually triggered Chute Trap 16262 | -6/Factory | Sucked down chute 16262 | -6/Factory | Entered Waste 16274 | -6/Waste | Spotted C-40 Crusher 16277 | -6/Waste | EMP discharged 16277 | -6/Waste | System corruption reached 10% 16312 | -6/Waste | Spotted C-40 Crusher 16318 | -6/Waste | Spotted C-40 Crusher 16323 | -6/Waste | Spotted C-40 Crusher 16328 | -6/Waste | Spotted C-40 Crusher 16339 | -6/Waste | Spotted C-40 Crusher 16367 | -6/Waste | Discovered new exit (range 16) 16377 | -6/Waste | EMP discharged 16377 | -6/Waste | Identified exit to Factory 16378 | -6/Waste | Entered Factory 16496 | -6/Factory | Discovered exit to Lower Caves (range 9) 16904 | -6/Factory | Entered Lower Caves 16905 | -6/Lower Caves | Identified exit to Lower Caves 16944 | -6/Lower Caves | Learned location of 1 exit from Factory 16954 | -6/Lower Caves | A Derelict revealed a hidden shortcut to meet someone special 17018 | -6/Lower Caves | Encountered a Warlord checkpoint 17159 | -6/Lower Caves | Spotted B-75 Beast 17178 | -6/Lower Caves | Attracted the attention of an 0b10 checkpoint 17614 | -6/Lower Caves | Entered another Lower Caves area 17617 | -6/Lower Caves | Learned Factory stockpile data 17730 | -6/Lower Caves | Discovered exit to Factory (range 15) 17860 | -6/Lower Caves | Attracted the attention of an 0b10 checkpoint 17978 | -6/Lower Caves | Discovered new exit (range 7) 17981 | -6/Lower Caves | Entered Data Miner 17981 | -6/Data Miner | Discovered new exit (range 6) 17993 | -6/Data Miner | Met Data Miner 18005 | -6/Data Miner | Learned location of Section 7 (-2) 18005 | -6/Data Miner | Acquired the access code to Warlord's prototype stash 18013 | -6/Data Miner | Received God Mode back door access code from Data Miner 18035 | -6/Data Miner | Entered Proximity Caves 18102 | -5/Proximity Caves | Attracted the attention of an 0b10 checkpoint 18490 | -5/Proximity Caves | Discovered exit to Factory (range 5) 18544 | -5/Proximity Caves | Entered Factory 18544 | -5/Factory | Evolved 2 slots: Utility x2 18545 | -5/Factory | Identified exit to Factory 18626 | -5/Factory | Allied Derelicts emerged from ambush trap array 18634 | -5/Factory | Repaired Med. Reactive Plating 18677 | -5/Factory | Garrison activated, responded to threat 18870 | -5/Factory | Identified exit to Upper Caves 19044 | -5/Factory | Discovered exit to Factory (range 8) 19448 | -5/Factory | Sucked down chute 19448 | -5/Factory | Entered Waste 19453 | -5/Waste | Spotted C-40 Crusher 19463 | -5/Waste | EMP discharged 19463 | -5/Waste | System corruption reached 10% 19464 | -5/Waste | Spotted C-40 Crusher 19465 | -5/Waste | Spotted C-40 Crusher 19474 | -5/Waste | Spotted C-40 Crusher 19474 | -5/Waste | Spotted C-40 Crusher 19507 | -5/Waste | Spotted C-40 Crusher 19529 | -5/Waste | Discovered new exit (range 11) 19534 | -5/Waste | Identified exit to Factory 19534 | -5/Waste | Entered Factory 19667 | -5/Factory | Discovered exit to Upper Caves (range 3) 19719 | -5/Factory | Entered Upper Caves 19749 | -5/Upper Caves | Ambushed by wild Derelicts 19810 | -5/Upper Caves | Found Alien Artifact 19810 | -5/Upper Caves | Identified Dimensional Node Initializer 19810 | -5/Upper Caves | Initialized slip node 19838 | -5/Upper Caves | Spotted B-75 Beast 20083 | -5/Upper Caves | Discovered new exit (range 11) 20089 | -5/Upper Caves | Identified exit to Upper Caves 20090 | -5/Upper Caves | Entered another Upper Caves area 20168 | -5/Upper Caves | Attracted the attention of an 0b10 outpost 20169 | -5/Upper Caves | Discovered exit to Factory (range 5) 20240 | -5/Upper Caves | Learned 4 Factory zone layouts 20411 | -5/Upper Caves | Learned location of 1 exit from Factory 20422 | -5/Upper Caves | Discovered new exit (range 9) 20439 | -5/Upper Caves | Identified exit to Zhirov 20469 | -5/Upper Caves | Entered Zhirov 20469 | -5/Zhirov | Discovered new exit (range 3) 20478 | -5/Zhirov | Met Zhirov 20489 | -5/Zhirov | Learned location of Testing (-3) 20489 | -5/Zhirov | Learned location of Command (-1) 20495 | -5/Zhirov | Zhirov requested help retrieving the SGEMP Prototype 20504 | -5/Zhirov | Found Alien Artifact 20504 | -5/Zhirov | Identified Integrated Reactor 20504 | -5/Zhirov | Installed Integrated Reactor, increased core energy generation (+10) 20512 | -5/Zhirov | Found Alien Artifact 20593 | -5/Zhirov | Identified exit to Proximity Caves 20593 | -5/Zhirov | Entered Proximity Caves 20674 | -4/Proximity Caves | Spotter reported a threat 20728 | -4/Proximity Caves | Spotter reported a threat 20916 | -4/Proximity Caves | Spotter reported a threat 20927 | -4/Proximity Caves | Learned 4 Research zone layouts 20927 | -4/Proximity Caves | Spotted B-86 Titan 20996 | -4/Proximity Caves | Discovered exit to Factory (range 9) 21000 | -4/Proximity Caves | Entered Factory 21000 | -4/Factory | Evolved 2 slots: Utility x1, Weapon x1 21001 | -4/Factory | Identified exit to Extension 21002 | -4/Factory | Identified exit to Research 21003 | -4/Factory | Identified exit to Armory 21212 | -4/Factory | Found Quantum Capacitor 21261 | -4/Factory | Identified exit to Upper Caves 21411 | -4/Factory | Found Exp. Terrain Scan Processor 21414 | -4/Factory | Found Exp. Terrain Scan Processor 21443 | -4/Factory | Fabricated Biometal Leg? 21613 | -4/Factory | Discovered exit to Research (range 16) 21652 | -4/Factory | Discovered exit to Research (range 16) 21879 | -4/Factory | Sucked down chute 21879 | -4/Factory | Entered Waste 21893 | -4/Waste | Spotted C-40 Crusher 21894 | -4/Waste | EMP discharged 21894 | -4/Waste | System corruption reached 10% 21899 | -4/Waste | Spotted C-40 Crusher 21900 | -4/Waste | Spotted C-40 Crusher 21900 | -4/Waste | Spotted C-40 Crusher 21909 | -4/Waste | Spotted C-40 Crusher 21909 | -4/Waste | Spotted C-40 Crusher 21926 | -4/Waste | Met Warlord forces unprepared to attack 21948 | -4/Waste | Allies destroyed C-40 Crusher 21948 | -4/Waste | Allies destroyed C-40 Crusher 21952 | -4/Waste | Allies destroyed C-40 Crusher 21958 | -4/Waste | Allies destroyed C-40 Crusher 21977 | -4/Waste | Lost 8 allies 21994 | -4/Waste | EMP discharged 22022 | -4/Waste | Discovered new exit (range 16) 22030 | -4/Waste | Identified exit to Factory 22079 | -4/Waste | Entered Factory 22079 | -4/Factory | Accompanied by 11 allies 22208 | -4/Factory | Repaired Imp. Medium Armor Plating? 22216 | -4/Factory | Lost 6 allies 22373 | -4/Factory | Discovered exit to Research (range 9) 22507 | -4/Factory | Lost 3 parts (2p1u) 22792 | -4/Factory | Entered Extension 23332 | -4/Extension | Rescued a captive Derelict 23333 | -4/Extension | Rescued a captive Derelict 23410 | -4/Extension | Lost 6 allies 23464 | -4/Extension | Rescued a captive Derelict 23896 | -4/Extension | Spotted B-86 Titan 23947 | -4/Extension | Destroyed B-86 Titan 23959 | -4/Extension | Spotted B-86 Titan 24028 | -4/Extension | Destroyed B-86 Titan 24031 | -4/Extension | Lost 3 parts (1p1u1w) 24074 | -4/Extension | Core integrity fell below 50% 24132 | -4/Extension | Rescued A7 24301 | -4/Extension | Build established: Mutant 24681 | -4/Extension | Build established: Construct 25215 | -4/Extension | Build established: Commander-Construct 25251 | -4/Extension | Discovered new exit (range 16) 25307 | -4/Extension | Identified exit to Cetus 25391 | -4/Extension | Entered Cetus 25391 | -4/Cetus | Accompanied by 6 allies (A7) 25396 | -4/Cetus | Acquired a Cetus Manufacturing Module code from A7 25411 | -4/Cetus | Spotted Cetus Guard 25411 | -4/Cetus | Spotted Cetus Guard 25411 | -4/Cetus | Spotted Cetus Guard 25412 | -4/Cetus | Spotted Cetus Guard 25426 | -4/Cetus | Allies destroyed Cetus Guard 25432 | -4/Cetus | Allies destroyed Cetus Guard 25437 | -4/Cetus | Allies destroyed Cetus Guard 25447 | -4/Cetus | Allies destroyed Cetus Guard 25466 | -4/Cetus | Lost 4 allies 25521 | -4/Cetus | Started Cetus Manufacturing Module 25528 | -4/Cetus | Escorted A7 to Cetus Mainframe 25544 | -4/Cetus | Discovered new exit (range 15) 25546 | -4/Cetus | Manufactured an Enhanced Grunt 25568 | -4/Cetus | Spotted Cetus Guard 25568 | -4/Cetus | Spotted Cetus Guard 25568 | -4/Cetus | Allies destroyed Cetus Guard 25570 | -4/Cetus | Spotted Cetus Guard 25571 | -4/Cetus | Manufactured an Enhanced Grunt 25575 | -4/Cetus | Allies destroyed Cetus Guard 25583 | -4/Cetus | Spotted Cetus Guard 25595 | -4/Cetus | Allies destroyed Cetus Guard 25596 | -4/Cetus | Manufactured an Enhanced Grunt 25605 | -4/Cetus | Discovered exit to Research (range 15) 25611 | -4/Cetus | Met Revision 17 25621 | -4/Cetus | Manufactured an Enhanced Grunt 25646 | -4/Cetus | Manufactured an Enhanced Grunt 25790 | -4/Cetus | Identified exit to Archives 25816 | -4/Cetus | Entered Archives 25816 | -4/Archives | Accompanied by 7 allies (A7) 25821 | -4/Archives | Received a hacking code to weaken MAIN.C 25865 | -4/Archives | Found Prototype Device 25865 | -4/Archives | Identified Exp. Thermal Shield 25882 | -4/Archives | Discovered new exit (range 16) 25968 | -4/Archives | Discovered exit to Research (range 14) 25993 | -4/Archives | Discovered new exit (range 16) 26402 | -4/Archives | Identified exit to Hub_04(d) 26412 | -4/Archives | Entered Hub_04(d) 26412 | -4/Hub_04(d) | Accompanied by 5 allies 26616 | -4/Hub_04(d) | Discovered exit to Research (range 10) 26866 | -4/Hub_04(d) | Network Hub disabled 26866 | -4/Hub_04(d) | Network Hub disabled 26952 | -4/Hub_04(d) | Build established: Construct 27001 | -4/Hub_04(d) | Network Hub disabled 27060 | -4/Hub_04(d) | Spotted Lightning 27060 | -4/Hub_04(d) | Spotted Lightning 27112 | -4/Hub_04(d) | Spotted Lightning 27122 | -4/Hub_04(d) | Entered Research 27122 | -3/Research | Evolved 2 slots: Utility x2 27322 | -3/Research | Revision forces began assault on 0b10 27415 | -3/Research | Met up with Revision 17++ 27659 | -3/Research | Fabricated Enh. Hardcell Cannon (x2) 27725 | -3/Research | Lost 3 allies 27822 | -3/Research | Research terminal network offline 27995 | -3/Research | Build established: Scavenger-Construct 28030 | -3/Research | Discovered new exit (range 5) 28033 | -3/Research | Identified exit to Research 28072 | -3/Research | Spotted Striker 28078 | -3/Research | Destroyed Striker 28082 | -3/Research | Spotted Striker 28084 | -3/Research | Spotted Executioner 28087 | -3/Research | Destroyed Executioner 28101 | -3/Research | Destroyed Striker 28173 | -3/Research | Spotted Striker 28175 | -3/Research | Destroyed Striker 28211 | -3/Research | Spotted Striker 28222 | -3/Research | Destroyed Striker 28328 | -3/Research | Spotted Striker 28332 | -3/Research | Spotted Striker 28334 | -3/Research | Spotted Striker 28338 | -3/Research | Spotted Striker 28342 | -3/Research | Destroyed Striker 28344 | -3/Research | Destroyed Striker 28346 | -3/Research | Destroyed Striker 28352 | -3/Research | Destroyed Striker 28409 | -3/Research | Spotted Striker 28424 | -3/Research | Destroyed Striker 28437 | -3/Research | Spotted Executioner 28467 | -3/Research | Destroyed Executioner 28479 | -3/Research | Found Prototype Processor 28479 | -3/Research | Identified Exp. Core Analyzer 28576 | -3/Research | Discovered exit to Research (range 15) 28712 | -3/Research | Discovered new exit (range 16) 28734 | -3/Research | Identified exit to Testing 28966 | -3/Research | Entered Testing 29017 | -3/Testing | Identified Transdimensional Reconstructor 29238 | -3/Testing | Found Prototype Energy Cannon 29238 | -3/Testing | Identified Cld. Nova Cannon 29290 | -3/Testing | Spotted PX-OGX2SZPV7M 29303 | -3/Testing | Spotted Striker 29500 | -3/Testing | Found Prototype Hackware 29500 | -3/Testing | Identified Ghost Barrier 29826 | -3/Testing | System corruption reached 10% 29924 | -3/Testing | Found Prototype Protection 29924 | -3/Testing | Identified Hvy. Regenerative Plating 29930 | -3/Testing | Found Prototype Protection 29936 | -3/Testing | Found Med. Regenerative Plating 30159 | -3/Testing | Found Prototype Device 30159 | -3/Testing | Identified AEGIS Remote Shield 30188 | -3/Testing | Discovered exit to Research (range 16) 30236 | -3/Testing | Build established: Construct 30276 | -3/Testing | Entered Research 30276 | -2/Research | Evolved 2 slots: Utility x1, Weapon x1 30713 | -2/Research | Garrison activated, responded to threat 30734 | -2/Research | System corruption reached 10% 30844 | -2/Research | Identified SHELL Armor 31040 | -2/Research | Spotted B-90 Cyclops 31060 | -2/Research | Incoming assault squad redirected 31062 | -2/Research | Incoming assault squad redirected 31099 | -2/Research | Lost 3 parts (1u2w) 31195 | -2/Research | System corruption reached 30% 31232 | -2/Research | Lost 4 parts (1p1n1u1w) 31270 | -2/Research | Warped through subspace 31286 | -2/Research | Lost 3 parts (2u1w) 31320 | -2/Research | Identified exit to Quarantine 31453 | -2/Research | Found Prototype Protection 31453 | -2/Research | Identified Centrium Heavy Armor Plating 31651 | -2/Research | Lost 6 parts (2p1n1u2w) 31672 | -2/Research | Spotted Executioner 31673 | -2/Research | Cargo convoy interrupted 31684 | -2/Research | Crushed by falling debris 31689 | -2/Research | Crushed by falling debris 31691 | -2/Research | Self-destructed Last Messages --------------- 31673_ P-80 Master shuts down. 31673_ U-05 Engineer destroyed. 31673_ Penetrated by Slug. 31679_ P-80 Master resets P-80 Master, system corruption cleaned. 31680_ Slug penetrates Wall. 31682_ Slug penetrates Earth. 31683_ System corrupted: Energy discharge (-70). 31684_ The unstable cave ceiling collapses. 31684_ Crushed by falling debris. 31684_ Scrap Engine destroyed. 31684_ System corrupted by crushing effect (+3). 31684_ Exp. Core Analyzer destroyed. 31684_ System corrupted by crushing effect (+5). 31685_ Penetrated by Slug. 31685_ Slug penetrates Earth. 31689_ The unstable cave ceiling collapses. 31689_ Crushed by falling debris. 31689_ Adv. Sensor Array destroyed. 31689_ System corrupted by crushing effect (+4). Map ----- +----------------------------------------------------+ | ???????????## ######/######+###/##### | | ?????????????? ##### | | ????????????????? ????? ????????## | | ?????????????? ???? ?????????## | | ??????????????#####????###?????????## | | ??????????????#### ???? ?????????#####+######"## | | ??????????????????????????????????? ### # ### | | ?????????????????????????????????????????# ! ## | | ?????????????????????????????????????????# ## | | ???????????????????????????????????????#?# ##" | | ????????????????????????????????? ##### ##+#####" | | ???????????????????????????? #???#" | | ?????????????????????????????#### ### #???#" | | ?????????????????????????????# # ##### | | ?????????????????????????????# # / | | ?????????????????????????????#" = #! | | ?????????????????????????????#" ## | | ?????????????????????????????#" | | ?????????????????????????????#T "%" | | ?????????????????????????????#" " | | ??????????????????????????##?#" = = | | ??????????????????????????# ## = = ##"#### | | ???????????????????????????# # i === #?## | | ??????????????????????########|%ER ! #??#! | | ??????????????????????# Yppp #??# " | | ??????????????????????###@ ## ###########??# " | | ???????????????????????#### #####????????????# " | | ???????????????????????### ##????????????????# | | ??????????????????????????#??????????????????# | | ???????????>?????????????????????????????????##+## | | ??????????????????????????????????????????????# ## | | ??????????????????????????????????????????????# | | ??????????????????????????????????????????????# | | ????????????????????????????????????????????### | | ????????????????????????????????????????????#"" | | ????????????????????????????????????????????#"" | | ????????????????????????????????????????????#" | | ????????????????????????????????????????????#"" | | ????????????????????????????????????????????#" | | ?????????????????????????????##############?### | | ?????????????????????????????# #???# | | ?????????????????????????????# ##### ^ | | ?????????????????????????????# /! | | ?????????????????????????????# # | | ?????????????????????????????# # | | ?????????????????????????????# # | | ?????????????????????????????# + | | ?????????????????####????????# """ # | | ?????????????????############# """ + | | ?????????????????## + / """ # | +----------------------------------------------------+ Best States ------------- Heat Dissipation 174 Energy Generation 61 Energy Capacity 935 Matter Stores 300 Matter Capacity 800 Sight Range 16 Robot Scan Range 18 Terrain Scan Range 16 Terrain Scan Density 1010 ECM Strength 1 Jamming Range 14 Additional Mass Support 12 Armor Coverage 1725 Resistance: KI 30 Resistance: EM 15 Utility Shielding 66 Phase Shifting 10 Evasion (%) 62 Targeting Accuracy 5 Target Analysis 8 Core Analysis 8 Recoil Reduction 5 Offensive Hacking 12 Item Schematics ----------------- Multitool | -8/Materials | Scanalyzed Imp. Utility Shielding | -8/Storage | Hacked ECM Suite | -8/Storage | Hacked IFF Parser | -8/Recycling | Hacked Combat Drone Bay | -6/Data Miner | Free Lgt. Regenerative Plating | -6/Data Miner | Free Cld. Nuclear Pulse Thruster | -6/Data Miner | Free Exp. Heat Sink | -6/Data Miner | Free Ionic Axe | -6/Data Miner | Free Imp. Linear Gravjet | -6/Data Miner | Free Adv. Target Analyzer | -6/Data Miner | Free Force Lance | -6/Data Miner | Free Exp. Utility Shielding | -5/Factory | Hacked CPS Tube | -5/Factory | Scanalyzed Assault Drone Bay | -5/Zhirov | Free Exp. Optical Array | -5/Zhirov | Free Imp. Arc Thrower | -5/Zhirov | Free Hvy. Proton Cannon | -3/Testing | Archive Exp. Cooling System | -3/Testing | Archive Exp. Matter Compressor | -3/Testing | Archive Med. Regenerative Plating | -3/Testing | Hacked Robot Schematics ------------------ H-66 Slayer | -6/Data Miner | Free A-15 Conveyor | -6/Data Miner | Free R-10 Processor | -6/Data Miner | Free G-50 Soldier | -6/Data Miner | Free O-32 Director | -6/Data Miner | Free B-74 Champion | -3/Testing | Archive Fabricated ------------ ECM Suite | x2 | -6/Factory G-50 Soldier | x3 | -6/Factory | Preloaded Biometal Leg | x2 | -4/Factory | Preloaded Enh. Hardcell Cannon | x2 | -3/Research | Preloaded Repaired ---------- Lgt. Treads | 19% | -10/Materials Multitool | 90% | -8/Materials | Broken Lyr. Light Armor Plating | 22% | -6/Factory Med. Reactive Plating | 48% | -5/Factory Imp. Medium Armor Plating | 50% | -4/Factory Alien Tech Used ----------------- Dimensional Node Initializer Integrated Reactor Transdimensional Reconstructor Achievements -------------- None Challenges ------------ None Game ------ Seed CatalystTechOptics Manual? 0 Play Time 04:52:57 Cumulative 546.1 hours Start 2025.08.10 @ 19:56:50 End 2025.08.11 @ 14:52:12 Sessions 5 Manual Loads 0 Difficulty Rogue Special Mode None Game No. 282 Rogue 219 Adventurer 63 Explorer 0 Win Type - Total 10 Types 8/0/0/1/0/0/1/0/0/0 Lore% 91 Gallery% 84 Achievement% 69 Wizard Run 0 Options --------- Layout 2 ASCII 0 Keyboard 1 Movement Numpad Keybinds 0 Fullscreen 2 Font 24/Terminus Map View 50x44 Zoom Use 0% Tactical HUD 1 Map Filters NONE Filters NONE Steam 1 RUN: 938955c3-36d8-420a-9b4d-850331e70500